Workbook

Sheet Cover Page
K2: Template version 25.1a (for incinerators) - 27/11/25
K4: Note that there is another version of this template available for co-incinerators
B8: Add photo
K13: Notes:
K14: This template may require adjustments by individual operators to meet specific reporting requirements as defined in the site Permit(s)
B29: Annual Performance Report 2025
B31: Permit EPR/RP3004MA v005
B33: Newhurst Energy Recovery Facility
B35: N/A
B37: Encyclis Ltd
B39: Year: | C39: 2025
B41: Address: | C41: Ashby Road, Loughborough, Leicestershire
B43: Tel:
B45: Email: | C45: kathryn.goldacre@encyclis.com
B47: Prepared by: | C47: Kathryn Goldacre | F47: Position: | G47: Health, Safety & Environment Manager
B49: Approved by: | C49: Andrew Sanderson | F49: Position: | G49: Head of Health, Safety & Compliance
B51: Version: | C51: 1
B53: Issue Date: | C53: 20th January 2026

Sheet Facility Info
A1: =+'Cover Page'!$B$29 -> Annual Performance Report 2025 | E1: =+'Cover Page'!$B$33 -> Newhurst Energy Recovery Facility
A3: Plant Description and Design | K3: Notes:
A5: Newhurst Energy Recovery Facility (ERF) is located at junction 23 of the M1 near Shepshed in Leicestershire at an approximate National Grid Reference (NGR) of SK 489 181, around 5km from the centre of Loughborough. The environmental setting to the site can be classed as ‘semi-urban’, with the A512 Ashby Road running to the north, northwest and northeast, beyond which lies Shepshed town at a distance of approximately 500m. Open space and agricultural land lies predominantly to the west and south of the site. The facility treats up to 455000 tonnes of non-recyclable waste from the local area and further afield. The facility is designed to be able provide combined heat & power (CHP) allowing export of heat to local offtakers, options are being explored. The site uses a state-of-the-art combustion control system, with 5-pass boiler. The steam turbine generates 44MW of electricity, enough to power the site and approx. 80,000 homes. The plant is equipped with the complex ‘XeroSorp’ dry flue gas treatment system to minimise emissions. The site was a joint venture between Encyclis and Biffa with Encyclis having the contract to operate and maintain the plant. From June 2025 Encyclis took full ownership of the facility. | K5: Include summary of plant design, design capacity, no. of combustion lines, electrical and heat capacity and any other general information that describes the facility, its location and purpose
A20: Summary of Operational Processes and Procedures
A22: Incoming refuse collection vehicles and bulk transport vehicles enter the site and proceed to the incoming weighbridge. After weighing in, the vehicles continue to the enclosed reception hall where they will discharge their load into the waste storage bunker. Vehicle loads are inspected randomly in the Tipping Hall to confirm the nature of incoming waste. Once vehicles have deposited their waste they leave the site via a second weighbridge. Potential emissions of odour and dust from the tipping hall and refuse bunkers are controlled by forced draught fans located above the refuse bunkers. These draw air from the bunker hall and reception area into the furnace to feed the combustion process, creating a slight negative pressure. Whilst the plant is offline, a carbon odour control system is active to ensure all odour remains controlled. The waste combustion takes place on a HZI moving grate, the heat generated being used to create superheated steam which is used to drive the steam turbine and generate electricity. Heat from turbine bleeds can be used for combined heat and power systems and is also used for pre-heating of combustion air to maximise efficiency. Condensing of the steam takes place via air cooled condensing system and the condensate cycles back around in a closed system (other than necessary top up). Emission control is via injection of ammonia into the furnace for NOx control via SNCR technology. At the end of the boiler and gas path is the HZI Xerosorp system where lime and activated carbon are added to remove acidic gases, dioxins, furans and heavy metals before this is all filtered by a bag filter system which removes the lime and carbon added and particulates from the combustion process producing APCr. Emissions are measured continuously in stack and by extractive stack measurements as required by the environmental permit. Residues from the process, IBA and APCr, are both sent to specialist reprocessing sites. IBA has metals removed for recyling and is reprocessed into IBAA (Incinerator Bottom Ash Aggregate). The APCr is sent to OCO Technology who use accelerated cabonation technology to produce a carbon negative aggregate material which encapsulates the absorbed substances from the APCr. Maintenance is controlled by a CMMS system and consists of planned preventative maintenance (ppm), derived from both experience of the plant and OEM requirements, and reactive maintenance. An annual shutdown period, during which maintenance and statutory inspections are carried out, is completed. The plant operates a document control system meeting the requirements of the Encyclis document management system and ISO 9001, 14001 and 45001 with the latest audit retaining the certification in September 2025. Commisioning of the site took place from late 2022 until 24th May 2023 at which point the site was handed over from the construction team to the O&M team. Takeover by Encyclis - 24th May 2023. From September 2024 the site has used HVO (Hydrotreated Vegetable Oil) for the furnace burners, mobile plant and on site generators (emergency back up). This produces less oxides of sulphur, oxides of nitrogen, CO and CO2 and is at least 96% biogenic by carbon-14 analysis (from specification sheet). | K22: Include summary of key processes and procedures such as (but not limited to); waste reception, control rooms, grate, bed and boiler, energy & heat generation, cooling systems, residue management, emission controls, health and safety systems, maintenance

Sheet Operational Data
A1: =+'Cover Page'!$B$29 -> Annual Performance Report 2025 | E1: =+'Cover Page'!$B$33 -> Newhurst Energy Recovery Facility
A3: Operational Data
A4: Plant Size: | B4: 455000 | D4: tonnes pa | J4: Notes:
A5: Nominal net thermal input: | B5: 127.3 | C5: MWth | J5: * Export capacity = nominal generation capacity at the generator terminals minus nominal parasitic load. ** CHP and district heating plants only - put N/A if no heat export. *** Combusted tonnage = tonnes delivered in period + (tonnes in bunker at start of period – tonnes in bunker at end of period), or equivalent calculation depending on plant type **** Availability Definition: The availability of a line is to be calculated by the number of hours the line reported Continuously Monitored emission levels to the Regulator through the calendar year divided by the total number of hours in that year. The overall plant availability is calculated as the mean of all lines in the plant. For clarity this includes periods of abnormal operation. Rationale: The primary function of an Energy from Waste facility is the disposal of waste. It follows therefore that the availability of a plant is determined by the period of time a facility spends undertaking this activity. *****NCV of waste: This should be completed for all plants which have a boiler. Calculate using total thermal power produced by boiler/boiler efficiency, or other suitable calculation.
A6: Nominal electrical export capacity*: | B6: 39.6 | C6: MWe
A7: Nominal heat export capacity**: | B7: N/A | C7: MWth
A8: No. of combustion lines: | B8: 1 | C8: No. of steam turbines: | E8: 1
A10: Waste types received | B10: Unit | C10: Q1 | D10: Q2 | E10: Q3 | F10: Q4 | G10: Year Total | H10: %
A11: Household / Local Authority | B11: tonnes | C11: 29267.1 | D11: 55472.54 | E11: 56643.8 | F11: 46685.84 | G11: =SUM(C11:F11) -> 188069.28 | H11: =IF(G11>0,G11/$G$21,"-") -> 0.5273142066
A12: Commercial & Industrial | C12: 48394.02 | D12: 22859.28 | E12: 29685.4 | F12: 55206.5 | G12: =SUM(C12:F12) -> 156145.2 | H12: 0.4378045274
A13: Hazardous | C13: 0 | D13: 0 | E13: 0 | F13: 0 | G13: 0 | H13: -
A14: Clinical (180104 + 180109) | C14: 398.9 | D14: 203.18 | E14: 38.74 | F14: 33.2 | G14: 674.02 | H14: 0.0018898372
A15: Waste wood (biomass) | C15: 0 | D15: 0 | E15: 0 | F15: 0 | G15: 0 | H15: -
A16: Refuse Derived Fuel (incl. SRF) - H'hold/LA | C16: 0 | D16: 0 | E16: 0 | F16: 0 | G16: =SUM(C16:F16) -> 0 | H16: -
A17: Refuse Derived Fuel (incl. SRF) - C&I | C17: 5325.18 | D17: 1903.76 | E17: 1598.98 | F17: 2927.22 | G17: 11755.14 | H17: 0.03295940902
A18: Other Plant tissue - 020103 | C18: 4.88 | D18: 1.12 | E18: 2.06 | F18: 3.36 | G18: 11.42 | H18: 3.201973358e-05
A19: Other [Please specify] | C19: 0 | D19: 0 | E19: 0 | F19: 0 | G19: 0 | H19: -
A20: Other [Please specify] | C20: 0 | D20: 0 | E20: 0 | F20: 0 | G20: 0 | H20: -
A21: Total waste received | C21: =SUM(C11:C20) -> 83390.08 | D21: =SUM(D11:D20) -> 80439.88 | E21: =SUM(E11:E20) -> 87968.98 | F21: =SUM(F11:F20) -> 104856.12 | G21: 356655.06
A22: Rejected Waste | G22: =SUM(C22:F22) -> 0 | H22: =IF(G22>0,G22/$G$21,"-") -> -
A23: Unprocessed waste transferred out | G23: =SUM(C23:F23) -> 0 | H23: =IF(G23>0,G23/$G$21,"-") -> -
A24: Total waste combusted *** | C24: 84549 | D24: 81872 | E24: 87433 | F24: 102334 | G24: =SUM(C24:F24) -> 356188
A25: Household / Local Authority = 200301, 191212 & 191210 municipal waste Commercial & Industrial = 200301, 191212 & 191210 other sources Total waste combusted *** = as measured by waste cranes / DCS
A27: Energy Usage / Export | B27: Unit | C27: Q1 | D27: Q2 | E27: Q3 | F27: Q4 | G27: Year Total | H27: KWh/te | J27: Password for protected cells A password has been set to prevent accidental editing of cells with formulae. If you still need to make an edit for some reason then the password = 1234
A28: Power generated at generator terminals | B28: MWh | C28: 83860 | D28: 72963 | E28: 67886 | F28: 21620 | G28: =SUM(C28:F28) -> 246329 | H28: =IF(G28>0,G28*1000/$G$24,"-") -> 691.570182
A29: Power exported to grid and other external user(s) | C29: 77538 | D29: 67015 | E29: 62252 | F29: 19911 | G29: =SUM(C29:F29) -> 226716 | H29: =IF(G29>0,G29*1000/$G$24,"-") -> 636.5065639
A30: Power imported | C30: 183.97 | D30: 449.89 | E30: 1173.13 | F30: 4836.68 | G30: 6643.67 | H30: =IF(G30>0,G30*1000/$G$24,"-") -> 18.65214437
A31: Indicative parasitic load $ | B31: % | C31: =IF(C28>0,(C28-C29)/C28,"-") -> 0.07538755068 | D31: =IF(D28>0,(D28-D29)/D28,"-") -> 0.0815207708 | E31: 0.08299207495 | F31: 0.07904717854 | G31: =IF(G28>0,1-G29/(G28+G30),"-") -> 0.1037925164
A32: Thermal Energy Exported ** | C32: N/A | G32: =SUM(C32:F32) -> 0 | H32: =IF(G32>0,G32*1000/$G$24,"-") -> -
A33: R1 value (if applicable) $ | B33: R1 | C33: - | D33: - | E33: - | F33: - | G33: 0.68
A34: NOTE $ : From 10th September 2025 until late on 10th December 2025 the plant was operating without the turbine due to a National Grid-imposed export curtailment. This restriction was associated with works at Ratcliffe on a damaged wall bushing requiring immediate repair, work which was extended to the beginning of December. During this period, the local network was being supplied via Coalville, which had limited capacity. As a result, the grid would not permit turbine operation or transition to island mode. This has had significant effect on overall export and import MWh figures and therefore also the R1 value.
A36: Waste Disposal & Recovery | B36: Unit | C36: Q1 | D36: Q2 | E36: Q3 | F36: Q4 | G36: Year Total | H36: % inputs
A37: APC Residues - produced | B37: tonnes | C37: 2196.46 | D37: 1974.3 | E37: 2151.12 | F37: 2472.84 | G37: =SUM(C37:F37) -> 8794.72 | H37: =IF(G37>0,G37/$G$24,"-") -> 0.02469123047
A38: IBA - produced | C38: 14967.48 | D38: 16145.58 | E38: 18335.7 | F38: 19757.76 | G38: 69206.52 | H38: =IF(G38>0,G38/$G$24,"-") -> 0.1942977304
A39: Metals recycling 200140 | C39: 1.48 | D39: 4.04 | E39: 20.42 | F39: 1.22 | G39: =SUM(C39:F39) -> 27.16 | H39: 7.625186699e-05
A40: 190102 Ferrous metals from IBA | C40: 308 | D40: 313.24 | E40: 334.14 | F40: 451.02 | G40: 1406.4 | H40: 0.003948476647
A41: 200301 - Mixed Municipal | C41: 6.32 | D41: 38.84 | E41: 30.3 | F41: 42.56 | G41: 118.02 | H41: 0.0003313418756
A42: 170201 - Wood | C42: 0.76 | D42: 2.3 | E42: 2.68 | F42: 1.1 | G42: 6.84 | H42: 1.920334206e-05
A43: 150106 - Mixed Packaging | C43: 0.06 | D43: 0 | E43: 0.06 | F43: 0.14 | G43: 0.26 | H43: 7.299515986e-07
A44: 200304 Septic tank sludge | C44: 184.06 | D44: 194.32 | E44: 211.46 | F44: 212.88 | G44: 802.72 | H44: 0.002253641335
A45: 161002 - Boiler Water | C45: 212.42 | D45: 0 | E45: 470.88 | F45: 0 | G45: 683.3 | H45: 0.001918368951
A46: 130508* mixtures of wastes from grit chambers and oil/water separators (seperator annual service) | C46: 6.64 | D46: 0 | E46: 0 | F46: 0 | G46: 6.64 | H46: 1.864184083e-05
A47: 130208* Waste oil | C47: 0.5 | D47: 0 | E47: 0 | F47: 0 | G47: 0.5 | H47: 1.403753074e-06
A48: 130110* mineral based non-chlorinated hydraulic oils | C48: 0 | D48: 0 | E48: 0 | F48: 2.5 | G48: 2.5 | H48: 7.018765371e-06
A49: 170904 mixed construction and demolition wastes other than those mentioned in 17 09 01, 17 09 02 and 17 09 03 | C49: 0 | D49: 13.54 | E49: 6.42 | F49: 0 | G49: 19.96 | H49: 5.603782272e-05
A50: 150202* absorbents, filter materials (including oil filters not otherwise specified), wiping cloths, protective clothing contaminated by hazardous substances | C50: 0.3 | D50: 0 | E50: 0.3 | F50: 0.5 | G50: 1.1 | H50: 3.088256763e-06
A51: 200135* discarded electrical and electronic equipment other than those mentioned in 20 01 21 and 20 01 23 containing hazardous components | C51: 0.16 | D51: 0 | E51: 0.4 | F51: 0 | G51: 0.56 | H51: 1.572203443e-06
A52: From quarterly waste returns as removed from site
A53: Metals recyling is metals from plant operation & maintenance. Metals recovered from IBA is 190102
A55: Raw Material Usage | B55: Unit | C55: Q1 | D55: Q2 | E55: Q3 | F55: Q4 | G55: Year Total | H55: Qty./te | L55: Q1 | M55: Q2 | N55: Q3 | O55: Q4 | P55: Density
A56: Mains Water | B56: ltrs | C56: 6593280 | D56: 7184180 | E56: 9280000 | F56: 7582198 | G56: =SUM(C56:F56) -> 30639658 | H56: =IF(G56>0,G56/$G$24,"-") -> 86.02102822 | K56: Townswater used m3 | L56: 6593.28 | M56: 7184.18 | N56: 9278 | O56: 7582.198
A57: Other Water | B57: ltrs | C57: 0 | D57: 0 | E57: 0 | F57: 0 | G57: 0 | H57: =IF(G57>0,G57/$G$24,"-") -> - | K57: Townswater used litres | L57: =L56*1000 -> 6593280 | M57: =M56*1000 -> 7184180 | N57: =N56*1000 -> 9278000 | O57: =O56*1000 -> 7582198
A58: Ammonia* | B58: kgs | C58: 3011.76 | D58: 20812.71 | E58: 17170.53 | F58: 35319.47 | G58: 76314.47 | H58: 0.2142533437 | K58: Ammonia L | L58: 3306 | M58: 22846 | N58: 18848 | O58: 38770 | P58: 0.911
A59: Urea | B59: kgs | C59: N/A | G59: =SUM(C59:F59) -> 0 | H59: - | K59: Ammonia kgs | L59: =L58*$P$58 -> 3011.766 | M59: =M58*$P$58 -> 20812.706 | N59: 17170.528 | O59: 35319.47 | Q59: =SUM(L59:O59) -> 76314.47
A60: Activated Carbon | B60: kgs | C60: 20450 | D60: 19270 | E60: 23590 | F60: 23140 | G60: 86450 | H60: 0.2427089065 | K60: PAC t | L60: 20.45 | M60: 19.27 | N60: 23.59 | O60: 23.14
A61: Lime / hydrated lime | B61: kgs | C61: 679400 | D61: 641140 | E61: 623750 | F61: 794990 | G61: 2739280 | H61: 7.690545442 | K61: PAC kgs | L61: =L60*1000 -> 20450 | M61: =M60*1000 -> 19270 | N61: 23590 | O61: 23140 | Q61: =SUM(L61:O61) -> 86450
A62: Fuel oil | B62: ltrs | C62: N/A | G62: 0 | H62: - | K62: Lime t | L62: 679.4 | M62: 641.14 | N62: 623.75 | O62: 794.99
A63: Gas | B63: m3 | C63: N/A | G63: 0 | H63: - | K63: Lime kgs | L63: =L62*1000 -> 679400 | M63: =M62*1000 -> 641140 | N63: 623750 | O63: 794990 | Q63: 2739280
A64: HVO (burners, EDG & mobile plant) | B64: ltrs | C64: 90743 | D64: 217458 | E64: 87894 | F64: 42863 | G64: 438958 | H64: 1.232377284
A66: Summary | B66: Line/Unit | C66: Q1 | D66: Q2 | E66: Q3 | F66: Q4 | G66: Year Total | I66: Hrs in year
A67: Availability of waste combustion by line, hrs **** | B67: 1 | C67: 1949.5 | D67: 1856 | E67: 1979 | F67: 2195.5 | G67: =SUM(C67:F67) -> 7980 | H67: =+G67/$I$67 -> 0.9109589041 | I67: 8760 | J67: Change this figure to 8784 in a leap year
B68: 2 | C68: N/A | G68: 0 | H68: =+G68/$I$67 -> 0
B69: 3 | C69: N/A | G69: 0 | H69: 0
B70: 4 | C70: N/A | G70: 0 | H70: 0
B71: 5 | C71: N/A | G71: =SUM(C71:F71) -> 0 | H71: 0
A72: Hours of turbine operations, hrs $ | B72: 1 | C72: 1955.46 | D72: 1815.71 | E72: 1662.49 | F72: 529.24 | G72: 5962.9 | H72: 0.680696347
A73: Hours of turbine operations, hrs | B73: 2 | C73: N/A | G73: 0 | H73: 0
A74: Hours of heat / steam export** | B74: hours | C74: N/A | G74: 0 | H74: =IF(B74>0,G73/I67,"n/a") -> 0
A75: Net calorific value of waste***** | B75: MJ/kg | C75: 10.86 | D75: 10.34 | E75: 9.95 | F75: 9.79 | G75: 10.23
A76: Abnormal operation events | B76: qty. | C76: 0 | D76: 0 | E76: 0 | F76: 0 | G76: 0 | H76: =IF(G76>0,"yes","no") -> no
A77: Abnormal operation duration | B77: hours | D77: 0 | E77: 0 | F77: 0 | G77: 0 | H77: =+(G77)/I67 -> 0
A78: Permit Breaches | B78: qty. | C78: 0 | D78: 0 | E78: 0 | F78: 0 | G78: 0 | H78: =IF(G78>0,"yes","no") -> no
A79: NOTE $ : From 10th September 2025 until late on 10th December 2025 the plant was operating without the turbine due to a National Grid-imposed export curtailment. This restriction was associated with works at Ratcliffe on a damaged wall bushing requiring immediate repair, work which was extended to the beginning of December. During this period, the local network was being supplied via Coalville, which had limited capacity. As a result, the grid would not permit turbine operation or transition to island mode. This has had significant effect on overall export and import MWh figures. * Ammonia kgs calculated from litres used x 0.911 (density from MSDS).

Sheet Operational Summary
A1: =+'Cover Page'!$B$29 -> Annual Performance Report 2025 | E1: =+'Cover Page'!$B$33 -> Newhurst Energy Recovery Facility
A3: Summary of Plant Operations and Maintenance during the reporting year | K3: Notes:
A5: The plant has maintained 91.1% availability, fractionally lower than 2024. In addition to the planned outage in March / April 2025 a tube leak at the start of September resulted in an unplanned shutdown. This coincided with a grid curtailment (see below) so the plant remained offline for some additional maintenance works - a total of 9 days. The turbine has been available for all of the year except the planned March / April outage but running was limited by the grid curtailment. From 10th September 2025 until late on 10th December 2025 the plant was operating without the turbine due to a National Grid-imposed export curtailment. This restriction was associated with works at Ratcliffe on a damaged wall bushing requiring immediate repair, work which was extended to the beginning of December. During this period, the local network was being supplied via Coalville, which had limited capacity. As a result, the grid would not permit turbine operation or transition to island mode. This has had significant effect on overall export and import MWh figures. The CEMS underwent AST in February 2025 and all measurands passed AST, the QAL2 functions from 2023 and 2024 (dust, flow & TOC) being maintained. The site has invested in an upgraded weather station coupled to Plumecast software to assist in detailed responses to any odour complaints. In September 2025 the site underwent a 3 day audit as part of the ongoing surveillence for the ISO 9001, 14001 and 45001 certification. 10 minor non-conformances and 6 Opportunities for Improvement found. During the year audits were also completed of Stack test SSP, testing and reports (EA template), DAHS provider and CEMS provider | K5: Include summary of key operational and/or maintenance activity undertaken in the year, such as any major component upgrades and/or replacements
A29: =+'Cover Page'!C39 -> 2025 | B29: Plant shut-downs
A30: Start date | B30: End date | C30: Reason for shut-down | K30: Provide a very brief reason for plant shut-down e.g. "Shut-down prior to major outage"; "Emergency shut-down due to boiler tube leak". All emergency shut-downs must be listed (irrespective of whether or not they were required to be reported to the EA). There is no need to include periods of hot-standby here (e.g. to clear feed chute hopper blockages). For clinical waste incinerators which require regular shut-downs for boiler cleaning, there is no need to record these here (only those prior to major outages, and emergency shut-downs).
A31: 2025-03-23 | B31: 2025-04-11 | C31: Annual planned maintenance outage
A32: 2025-04-12 | B32: 2025-04-14 | C32: Emerging issues folllowing outage
A33: 2025-09-08 | B33: 2025-09-17 | C33: Tube leak repair plus, due to grid curtailment, remained offline to complete some additional maintenance tasks

Sheet Perf. Form 1
A1: =+'Cover Page'!C39 -> 2025 | B1: Annual Reporting Performance Form 1
A3: =+'Cover Page'!B31 -> Permit EPR/RP3004MA v005 | F3: Operator: | G3: =+'Cover Page'!B37 -> Encyclis Ltd
A4: Facility: | B4: =+'Cover Page'!B33:I33 -> Newhurst Energy Recovery Facility | F4: Form: | G4: Performance 1
A6: Reporting Period from: | D6: 1st January 2025 | F6: to: | G6: 2025-12-31
A8: =+A1 -> 2025 | B8: Annual Reporting of Waste Disposal and Recovery
A9: Waste Description | C9: Disposal Route(s) | E9: Disposal Tonnes | G9: Recovery Tonnes | I9: % / tonne of waste incinerated
A10: 1) Hazardous Wastes
A11: APC Residues | C11: R05 | E11: 0 | G11: ='Operational Data'!G37 -> 8794.72 | I11: =IF((E11+G11)>0,(E11+G11)/'Operational Data'!$G$24, "-") -> 0.02469123047
A12: IBA | C12: 0 | E12: 0 | G12: 0 | I12: =IF((E12+G12)>0,(E12+G12)/'Operational Data'!$G$24, "-") -> -
A13: 130508 mixtures of wastes from grit chambers and oil/water separators (seperator annual service) | C13: D15 | E13: ='Operational Data'!G46 -> 6.64 | G13: 0 | I13: =IF((E13+G13)>0,(E13+G13)/'Operational Data'!$G$24, "-") -> 1.864184083e-05
A14: 130208* Waste oil | C14: R13 | E14: 0 | G14: ='Operational Data'!G47 -> 0.5 | I14: =IF((E14+G14)>0,(E14+G14)/'Operational Data'!$G$24, "-") -> 1.403753074e-06
A15: 130110* mineral based non-chlorinated hydraulic oils | C15: R03 | E15: 0 | G15: ='Operational Data'!G48 -> 2.5 | I15: =IF((E15+G15)>0,(E15+G15)/'Operational Data'!$G$24, "-") -> 7.018765371e-06
A16: 150202* absorbents, filter materials (including oil filters not otherwise specified), wiping cloths, protective clothing contaminated by hazardous substances | C16: R13 | E16: 0 | G16: ='Operational Data'!G50 -> 1.1 | I16: =IF((E16+G16)>0,(E16+G16)/'Operational Data'!$G$24, "-") -> 3.088256763e-06
A17: 200135* discarded electrical and electronic equipment other than those mentioned in 20 01 21 and 20 01 23 containing hazardous components | C17: R13 | E17: 0 | G17: ='Operational Data'!G51 -> 0.56 | I17: =IF((E17+G17)>0,(E17+G17)/'Operational Data'!$G$24, "-") -> 1.572203443e-06
A18: Total Hazardous Waste | E18: =SUM(E11:F17) -> 6.64 | G18: =SUM(G11:H17) -> 8799.38 | I18: =IF((E18+G18)>0,(E18+G18)/'Operational Data'!$G$24, "-") -> 0.02472295529
A20: 2) Non-Hazardous Wastes
A21: IBA | C21: R05 | E21: 0 | G21: ='Operational Data'!G38 -> 69206.52 | I21: =IF((E21+G21)>0,(E21+G21)/'Operational Data'!$G$24, "-") -> 0.1942977304
A22: Ferrous Metal from IBA | C22: R04 | E22: 0 | G22: ='Operational Data'!G40 -> 1406.4 | I22: =IF((E22+G22)>0,(E22+G22)/'Operational Data'!$G$24, "-") -> 0.003948476647
A23: Metals 200140 | C23: R04 | E23: 0 | G23: ='Operational Data'!G39 -> 27.16 | I23: =IF((E23+G23)>0,(E23+G23)/'Operational Data'!$G$24, "-") -> 7.625186699e-05
A24: 161002 - Boiler Water | C24: R05 | E24: 0 | G24: ='Operational Data'!G45 -> 683.3 | I24: =IF((E24+G24)>0,(E24+G24)/'Operational Data'!$G$24, "-") -> 0.001918368951
A25: 200301 - Mixed Municipal | C25: R01, R03 | E25: 0 | G25: ='Operational Data'!G41 -> 118.02 | I25: =IF((E25+G25)>0,(E25+G25)/'Operational Data'!$G$24, "-") -> 0.0003313418756
A26: 170201 - Wood | C26: R03 | E26: 0 | G26: ='Operational Data'!G42 -> 6.84 | I26: =IF((E26+G26)>0,(E26+G26)/'Operational Data'!$G$24, "-") -> 1.920334206e-05
A27: 150106 - Mixed Packaging | C27: R03 | E27: 0 | G27: ='Operational Data'!G43 -> 0.26 | I27: =IF((E27+G27)>0,(E27+G27)/'Operational Data'!$G$24, "-") -> 7.299515986e-07
A28: 200304 Septic tank sludge | C28: D08 | E28: ='Operational Data'!G44 -> 802.72 | G28: 0 | I28: =IF((E28+G28)>0,(E28+G28)/'Operational Data'!$G$24, "-") -> 0.002253641335
A29: 170904 mixed construction and demolition wastes other than those mentioned in 17 09 01, 17 09 02 and 17 09 03 | C29: D01 | E29: ='Operational Data'!G49 -> 19.96 | G29: 0 | I29: =IF((E29+G29)>0,(E29+G29)/'Operational Data'!$G$24, "-") -> 5.603782272e-05
A30: Total Non-Hazardous Waste | E30: =SUM(E21:F29) -> 822.68 | G30: =SUM(G21:H28) -> 71448.5 | I30: =IF((E30+G30)>0,(E30+G30)/'Operational Data'!$G$24, "-") -> 0.2029017822
A31: TOTAL WASTE | E31: =+E30+E18 -> 829.32 | G31: =+G30+G18 -> 80247.88 | I31: =IF((E31+G31)>0,(E31+G31)/'Operational Data'!$G$24, "-") -> 0.2276247375
A33: Operator’s comments :
A34: All IBA is recycled into IBAA. IBA has remained non-hazardous throughout 2025. APCr goes through the OCO Accelerated Carbonation Technology process where the APCr waste is reacted with Carbon Dioxide in a carbon capture process (CCU) to produce a calcium carbonate based aggregate.
A38: =+A1 -> 2025 | B38: Annual Reporting of Water and Other Raw Material Usage
A39: Raw Material | E39: Usage | G39: Unit | H39: Specific Usage | J39: Unit
A40: Mains Water | E40: =+'Operational Data'!G56/1000 -> 30639.658 | G40: m3 | H40: =IF(E40>0,E40/'Operational Data'!$G$24,"-") -> 0.08602102822 | J40: m3/te
A41: Total Water | E41: =+'Operational Data'!G57+'Operational Data'!G56/1000 -> 30639.658 | G41: m3 | H41: =IF(E41>0,E41/'Operational Data'!$G$24,"-") -> 0.08602102822 | J41: m3/te
A42: Urea / Ammonia | E42: =+'Operational Data'!G58 -> 76314.47 | G42: kg | H42: =IF(E42>0,E42/'Operational Data'!$G$24,"-") -> 0.2142533437 | J42: kg/te
A43: Activated Carbon | E43: =+'Operational Data'!G60 -> 86450 | G43: kg | H43: =IF(E43>0,E43/'Operational Data'!$G$24,"-") -> 0.2427089065 | J43: kg/te
A44: Lime / hydrated lime / Sodium Bicarb. | E44: =+'Operational Data'!G61 -> 2739280 | G44: kg | H44: =IF(E44>0,E44/'Operational Data'!$G$24,"-") -> 7.690545442 | J44: kg/te
A46: Operator’s comments :
A47: Slight variations from previous years quantity per tonne of waste from fine tuning of the abatement systems
A50: =+A38 -> 2025 | B50: Annual Reporting of other performance indicators
A51: Parameter | C51: Results by Line
C52: A1 | D52: A2 | E52: A3 | F52: A4 | G52: A5 | I52: Turbine 1 | J52: Turbine 2
A53: Operating hours for the year, hours | C53: ='Operational Data'!G67 -> 7980
A54: Number of periods of abnormal operation, qty. | C54: ='Operational Data'!G76 -> 0
A55: Cumulative hours of abnormal operation for this year, hours | C55: ='Operational Data'!G77 -> 0
A57: Operator’s comments :
A58: No abnormal operations or permit non-compliances.
A61: Signed: | G61: Date: | H61: 20th January 2026

Sheet Energy Form 1
A1: =+'Cover Page'!C39 -> 2025 | B1: Annual Reporting of Energy Usage/Export
A3: =+'Cover Page'!B31 -> Permit EPR/RP3004MA v005 | F3: Operator: | G3: =+'Cover Page'!B37 -> Encyclis Ltd
A5: Facility: | B5: =+'Cover Page'!B33:I33 -> Newhurst Energy Recovery Facility | F5: Form: | G5: Energy 1
A7: Reporting Period from: | D7: =+'Perf. Form 1'!D6:E6 -> 1st January 2025 | F7: to: | G7: =+'Perf. Form 1'!G6:H6 -> 2025-12-31
A9: Energy Source | D9: Energy Usage | F9: Unit | G9: Specific Usage (KWh/tonne incinerated
A10: Electricity Produced | D10: =+'Operational Data'!G28 -> 246329 | F10: MWh | G10: =+'Operational Data'!H28 -> 691.570182
A11: Electricity Imported | D11: =+'Operational Data'!G30 -> 6643.67 | F11: MWh | G11: =+'Operational Data'!H30 -> 18.65214437
A12: Electricity Exported | D12: =+'Operational Data'!G29 -> 226716 | F12: MWh | G12: =+'Operational Data'!H29 -> 636.5065639
A13: Gas Oil | D13: N/A | F13: tonnes | G13: N/A
A14: Steam/hot water exported | D14: =+'Operational Data'!G32 -> 0 | F14: GWh | G14: =+'Operational Data'!H32 -> -
A15: HVO (Hydrotreated Vegetable Oil) | D15: =('Operational Data'!G64/1000)*0.772 -> 338.875576 | F15: tonnes | G15: ='Operational Data'!H64 -> 1.232377284
A18: Operator’s comments :
A19: HVO tonnes calculated from litres using a density of 0.772 (taken from MSDS). From 10th September 2025 until late on 10th December 2025 the plant was operating without the turbine due to a National Grid-imposed export curtailment. This restriction was associated with works at Ratcliffe on a damaged wall bushing requiring immediate repair, work which was extended to the beginning of December. During this period, the local network was being supplied via Coalville, which had limited capacity. As a result, the grid would not permit turbine operation or transition to island mode. This has had significant effect on overall export and import MWh figures.
A29: Signed: | G29: Date: | H29: 20th January 2026

Sheet Permit Compliance
A1: =+'Cover Page'!$B$29 -> Annual Performance Report 2025 | E1: =+'Cover Page'!$B$33 -> Newhurst Energy Recovery Facility
A3: Summary of Permit Compliance
A5: Compliance with permit limits for continuously monitored pollutants
A7: The plant met its emission limits as shown in the table below:
A8: Substance | C8: Percentage time compliant during operationNote 1 | L8: Notes:
C9: Half-hourly limit | F9: Daily limit | L9: Note 1: Please report to 2 decimal places, i.e. xx.xx% Note 2: Please enter into this table any permit non-compliances that the EA has given a CCS score for. Please also enter any other non-compliances which you have notified to the EA (e.g. ELV exceedances) but which have not yet been assessed by the EA. There is no need to enter any notifications which were subsequently assessed by the EA not to be permit breaches. Note 3: Please enter information here (rather than just referencing the notifications that were sent to the EA) including where relevant the incineration line reference, pollutant and value of the measured result for any ELV exceedances.
A10: Particulates | C10: 1 | F10: 1
A11: Oxides of nitrogen | C11: 1 | F11: 1
A12: Sulphur dioxide | C12: 1 | F12: 1
A13: Carbon monoxide | C13: 100.00% 95% of 10-min averages | F13: 1
A14: Total organic carbon | C14: 100%* | F14: 1
A15: Hydrogen chloride | C15: 1 | F15: 1
A16: Hydrogen fluoride | C16: N/A - Periodic monitoring | F16: N/A - Periodic monitoring
A17: Nitrous Oxide | C17: N/A no ELV | F17: N/A no ELV
A18: Ammonia | C18: N/A no ELV | F18: 1
A20: Summary of non-compliances under the permit Note 2
A21: Date | B21: Summary of non-compliance Note 3 | D21: Reason | G21: Measures taken to prevent reoccurrence | H21: CCS score if applicable*
H22: Impact | I22: Root cause
B23: None
A25: *If the Environment Agency (EA) has given a Compliance Classification Scheme (CCS) score due to a permit non-compliance it should be entered here (CCS4 = No impact; CCS3 = Minor impact; CCS2 = Significant impact; CCS1 = Major impact). If the EA has not yet assessed a non-compliance which you have notified to them, these columns should be left blank. Enter N/A if no score was given for the root cause.
A27: Summary of any complaints received and actions to taken to resolve them.
A28: Date | B28: Summary of complaint [including Line/Reference] | E28: Reason (including whether substantiated by the operator or the EA) | H28: Measures taken to prevent reoccurrence
A29: Received via EA 06/01/2025. about 02/01/2025 | B29: The caller would describe the odour like smoke smell or like burning smell. The caller first noticed early hours of today between 2am to 4am. Some odour gets inside the house even when the doors and window are closed. The caller has to keep the windows and doors shut in order to avoid/mitigate this smell. The weather conditions at the time were still. The caller would rate the odour at 5/6. The odour is affecting the caller in the following way: They had to close the window at that time. They have health concerns arising from this issue. NIRS 02338535 | E29: Location of complaint NW of site approx 0.6 miles (0.99km). No issues on site, no odours recorded in on site monitoring, all emissions well within ELV. Wind v light SW. Not substantiated - not related to site | H29: N/A
A30: 22nd Feb 2025 | B30: Report received by email on 25th Feb 2025 "Strong acidic burning smell from incinerator , Saturday 22 February 2025 1.pm (onwards), No local bonfires or woodsmoke detected. Bad enough to make us shut windows." Reported as Holywell Hall which is due East of site. In the report to the local council the same description but listed the home address of the complainant which is in a north easterly direction from site. NIRS 02360591 | E30: Location of complainant E approx 1.5 mile and NE approx 2 mile of site. No issues on site, no odours recorded in on site monitoring, all emissions well within ELV. Wind v light S - SW. Not substantiated - not related to site | H30: N/A
A31: 2025-03-02 | B31: 1pm ongoing still at 1.35 pm A strong burning smell . No bonfires or wood burning smoke visible locally It is a most unpleasant smell and makes working or sitting outside in our garden barely tolerable." NIRS 02362796 | E31: No location of complainant given other than approx 2 miles away. No issues on site, no odours recorded in on site monitoring, all emissions well within ELV. Wind v light SE - SSW. Not substantiated - not related to site | H31: N/A
A32: 2025-03-05 | B32: 12 noon ongoing still at 12.38 pm The strongest burning smell like plastics . No bonfires or wood burning smoke visible locally the unpleasant smell and makes working outside or opening windows intolerable and is almost choking at times. NIRS 02363723 | E32: The location of the complainant is ENE of site approx. 1.35 miles in a straight line. Light variable wind ESE to SSW 3.4 - 6.4mph No issues on site, no odours recorded in on site monitoring, all emissions well within ELV. LCC investigated & found it to be linked to forestry works near the side of the motorway & fed such back to the complainants. Not substantiated - not related to site | H32: N/A
A33: 27/2/2025 but not received from EA until 31st March 2025 | B33: This complaint was only passed to site on the morning of 31st March 2025. Please see NIRS report ref 02361729 received on 27/02/2025 relating to your site. Initially there appears to have been some confusion over what site this issue related to hence the delay in getting this to you. Report is as follows – There is a recycling site burning waste and it is producing a thick black smoke No odour noticeable Noticed at 7:45am Just smoke, no fire vsible Unsure of hazardous materials It is not usually this colour, usually its grey No sensitive receptors affected | E33: No location of complainant given. Wind SW at 6mph. No issues on site, all emissions well within ELV. CCTV checked, The plume does look dark however with fully compliant emissions this is related to the angle of the sunlight on the plume. There is a clear gap between the top of the stack and start of the visible plume, as common with steam plumes where dust or smoke is visible for the full length. Dark appearance is caused by interaction of the sunlight with the dense water vapour in the plume. | H33: N/A
A34: 2025-07-22 | B34: The odour is like burning electrical cables Odour was first noticed at 08:00 Windows and doors are open, inside the home Weather is humid warm, rain, bit of sun Odour is affecting caller, eyes running, coughing Rated 6 NIRS 02411372 | E34: Wind WNW at 2-3 mph The complainant was located WNW of site so the wind was blowing from them towards site. No issues on site, no odours recorded in on site monitoring, all emissions well within ELV. Not substantiated - not related to site | H34: N/A
A35: 2025-07-22 | B35: Again today the whole town stinks of burnt plastic, the wind isn’t very strong, but it’s still hot so I’ve tried to open my windows, but now my kitchen smells of burnt plastic. I’ve been to Asda and aldi and both areas smelt like burnt plastic. No one is burning stuff in their gardens. I’ve smelt the same smell in three different places. The incinerator people are lying saying that only water vapour is getting out of the stack, it plain as day reeks in Shepshed. I returned to Shepshed at around 8pm, stinks everywhere, I’m in my kitchen at almost 9pm (22.07.25) and I can smell the burning rubbish through a blocked nose in my kitchen. I’m going to have to move house again, this is truly ridiculous. NIRS 02411331 | E35: Wind WNW at 2-3.4 mph The complainant was located NW of site so the wind was blowing from them towards site. No issues on site, no odours recorded in on site monitoring, all emissions well within ELV. Not substantiated - not related to site | H35: N/A

Sheet Improvements
A1: =+'Cover Page'!$B$29 -> Annual Performance Report 2025 | E1: =+'Cover Page'!$B$33 -> Newhurst Energy Recovery Facility
A3: Summary of Plant Improvements
A5: Summary of any efficiency improvements that have been completed within the year.
A6: Tuning of the grate and combustion systems by KVI (OEM).
A10: Summary of any permit improvement conditions that have been completed within the year and the resulting environmental benefits.
A11: Currently the site is permitted to operate down to 80% load as a minimum. The site and Kanadavie Inova have compelted further tuning of the plant and further measurements to prove T2S is maintained at lower load. The ability to run at lower loads allows the plant to deload but remain operational rather than having to shutdown and startup again so minimising environmental impact. This report is currently with the Environment Agency for approval of the lower load.
A19: Summary of any changes to the plant or operating techniques which required a variation to the permit and a summary of the resulting environmental impact.
A20: An application for a permit variation has been made to allow use of the onsite package treatment plants as such, with discharge of the cleaned water via the site attenuation pond to Shorecliffe Brook. This is currently with the Environment Agency for determination.
A26: Summary of any other improvements made to the plant or planned to be made and a summary of the resulting environmental benefits.
A27: As part of our efforts to monitor and measure any potential impact from the facility we have invested in an upgraded weather station and Plumecast software, as used by such as the emergency services, to monitor the plume location and spread in current weather conditions.

Sheet Public Liasion
A1: =+'Cover Page'!$B$29 -> Annual Performance Report 2025 | E1: =+'Cover Page'!$B$33 -> Newhurst Energy Recovery Facility
A3: Details of Public & Stakeholder Liaison
A5: Summary of events held during the reporting year.
A6: Date | C6: Description
A7: 25/1/2025 and 10/9/2025 | C7: Local Liaison Committee Meeting.
A9: 2025-03-06 | C9: Loughborough University U3A Science & technology Group (Retired Professionals) approx 20 people
A10: 2025-06-06 | C10: Garendon Estate - Trustees Meeting 11 people
A11: 2025-06-19 | C11: Shepshed Foodbank 11 people
A12: 2025-07-08 | C12: Biffa Students Work Experience 4 people
A13: 2025-08-13 | C13: Weedon Architects & Brush Group 11 people
A14: 2025-09-09 | C14: Loughborough University Students 14 people
A15: 2025-09-18 | C15: Loughborough University U3A Science & technology Group (Retired Professionals) 18 people
A16: 19/411/2025 | C16: Loughborough University & Vital Energy 11 people
A17: 2025-12-10 | C17: Loughborough University Estates & FM tour 15 people
A19: List of events planned for next year
A20: Date | C20: Description
A21: Six monthly | C21: Local Liaison Committee Meeting
A32: If you wish to be involved in the public liaison programme, please contact _________________

Sheet CO2 N2O
A1: =+'Cover Page'!$B$29 -> Annual Performance Report 2025 | C1: =+'Cover Page'!$B$33 -> Newhurst Energy Recovery Facility
A3: Carbon dioxide emissions and biogenic content of waste inputs | F3: Notes:
A5: Carbon dioxide emissions (all types of plant)
B6: Annual mass of carbon dioxide released | C6: tonnes | D6: 388248.21
B7: Annual mass of carbon dioxide released per tonne of waste burned | C7: t CO2 / t waste | D7: =D6/'Operational Data'!G24 -> 1.090009237 | F7: Note 1: All permits require operators to continuously monitor CO2 to EN14181 and flow to BS EN 16911-2 (unless otherwise agreed in writing). Operators must therefore use the results from these instruments to calculate their annual CO2 emissions. Where an operator does not have a flow meter calibrated to BS EN 16911-2, the averaged flow measurement from that year's periodic monitoring can be used instead. If the plant does not have calibrated CO2 CEMS, a suitably justified emissions factor can be used.
B8: Annual mass of carbon dioxide released per MWh of energy exported | C8: t CO2 / MWh export | D8: =D6/'Operational Data'!G29 -> 1.712487032
B9: Description of how annual carbon dioxide mass emission has been calculated. See Note 1 | C9: Direct measurement from CEMS with QAL2 on both CO2 and flow This is ALL CO2 including SU and SD and with no confidence interval applied - as for pollution inventory
A10: Nitrous oxide emissions (only plants which use ammonia or urea to abate NOx emissions)
B11: Annual mass emissions of nitrous oxide | C11: tonnes N2O | D11: 0.2789
B12: Description of how annual nitrous oxide mass emission has been calculated See Note 2 | C12: Direct measurement from CEMS with QAL2 on both nitrous oxide and flow This is ALL N2O including SU and SD and with no confidence interval applied - as for pollution inventory | F12: Note 2: All permits require operators to continuously monitor N2O to EN14181 and flow to BS EN 16911-2, unless otherwise agreed in writing. Operators must therefore use the results from these instruments to calculate their annual N2O emissions. Where an operator does not have a flow meter calibrated to BS EN 16911-2, the averaged flow measurement from periodic monitoring can be used instead. If the plant does not have calibrated N2O CEMS, data from periodic monitoring or a suitably justified emissions factor can be used instead.
A13: Total annual carbon dioxide + nitrous oxide emissions. See Note 3. | C13: tonnes CO2e | D13: =(D11*265)+D6 -> 388322.1185 | F13: Note 3: Total annual carbon dioxide and nitrous oxide emissions reported as carbon dioxide equivalent where 1 tonne nitrous oxide is equivalent to 265 tonnes carbon dioxide.
A14: Biogenic CO2 emissions (See Note 4) | F14: Note 4: Only plants combusting residual municipal waste, refuse derived fuel or solid recovered fuel need complete this section.
B15: Percentage of total carbon dioxide emissions arising from biogenic waste | C15: % | D15: 0.54
B16: No. of measurements undertaken | C16: Number | D16: 1
B17: Description of how percentage biogenic carbon dioxide emissions have been measured or calculated. See Note 5 | C17: Extractive stack sample taken by Element during H2 sampling campaign and analysed by Beta Analytic Inc. Results are accredited to ISO/IEC 17025:2017 PJLA #59423 standards | F17: Note 5: The results from C14 sampling should be used if this is carried out at the plant (either via an installed sampler or from spot samples). Otherwise, as an approximation (and in lieu of any more accurate metrics which may be developed in future), the measured or estimated biogenic fraction by net calorific value (see Note 6) can be assumed to be the same as the biogenic CO2 fraction of the total CO2 emissions from the plant.
A18: Biogenic fraction of waste feedstock (See Note 4)
B19: Yearly average biogenic percentage of the waste by net calorific value (NCV) | C19: % | D19: 0.6296
B20: Description of how biogenic percentage (by NCV) has been calculated or estimated. See Note 6 | C20: Waste sampling. Samples taken on 4 consecutive days for each sampling campaign | F20: Note 6: If C14 sampling is carried out at the plant, the methodology set out in the embedded document entitled "Renewable Energy Association Energy Content of Fuels - Description of Method" embedded below can be used to calculate the biogenic percentage by net calorific value. Otherwise, data from waste sampling or BIOMA software can be used; or if none of these are available, an estimated figure with justification or a figure assumed on the basis of up-to-date industry data can be used.
B21: Yearly average biogenic percentage of the waste by mass | C21: % | D21: 0.5593
B22: If waste sampling undertaken, no. of samples used to ascertain average biogenic percentages above | C22: Number | D22: 12
B23: Description of how biogenic percentage (by mass) has been calculated or estimated. See Note 7 | C23: Waste sampling. Samples taken on 4 consecutive days for each sampling campaign | F23: Note 7: Where available, data from waste sampling should be used; otherwise, an estimated figure with justification can be used, or a figure assumed on the basis of up-to-date industry data.
B25: Comments:
B26: See previous note about lower export of elec tricity which will affect these mass per MWh exported figures compared to previous years.

Sheet Residues
A1: =+'Cover Page'!$B$29 -> Annual Performance Report 2025 | E1: =+'Cover Page'!$B$33 -> Newhurst Energy Recovery Facility
A3: Summary of Residue Handling for the reporting year
A5: All IBA produced on site was collected from site by Day Aggregates to the Encyclis owned Wellingborough IBA Facility run by Day Aggregates (KP3902MB). Metals are collected seperately by Day group for re-processing by themselves or their sub-contractors. Throughout 2025 IBA has undergone routine ESA hazard analysis (2 samples / month analysed by WRc) and all samples have been shown to be non-hazardous. The first sample in the month of October underwent the full annual characterisation including HP1-HP15. The site IBA has maintained its non-hazardous staus. The IBA was sampled monthly for TOC until June 2024 (end of first year of operation) and quarterly after that as per permit requirements. All samples have remained under the 3% ELV. The APCr produced at site is sent to one of the four O.C.O. plants for processing through their Accelerated Carbonation Technology where the APCr waste is reacted with Carbon Dioxide in a carbon capture process (CCU) to produce a calcium carbonate based aggregate which has End of Waste approval from the Environment Agency. | K5: Include in here a summary of residue handling regimes and destinations
A18: Residue Quality Monitoring Requirements
A20: Summary of monitoring undertaken and compliance
A21: The site has continued with the usual two samples per month IBA as per ESA protocol. From July 2024 as per site permit, and with agreement of the Agency, we continued with two samples per month for ESA hazard assessment but one randomly selected per quarter was sent for full permit compliance analysis, the other five in the quarter for ESA core hazard assessment. All IBA has been non-hazardous and below the permit compliance limit of 3% TOC.
A23: APCr has been sampled and analysed once per quarter as per site permit and analysis completed and reported as required by the permit.
A25: A full annual analysis including soluble fractions was completed on the October 1 sample in accordance with the protocol.
A27: All residue analysis was carried out for Encyclis by WRc.
A29: Commentary on any specific events
A30: Date & Event | C30: Description
C31: None
A37: Residue Quality Monitoring Results
A38: Parameter (unit) | C38: Limit* | D38: Normal Operation
D39: Bottom ash | F39: APC Residues
A40: Loss on Ignition (average %) | C40: <5%
A41: Total Organic Carbon (average %) | C41: <3% | D41: 0.0117
A42: No. of Assessments Undertaken | C42: --- | D42: 4 | F42: 4
A43: No. of Hazardous Results | C43: --- | D43: 0
A44: * The permit will specify a limit of either 5% loss on ignition or 3% total organic carbon. If both are measured anyway, please enter the results here, even where the limit does not apply.
A46: Comments :
A47: None

Sheet Water
A1: =+'Cover Page'!$B$29 -> Annual Performance Report 2025 | E1: =+'Cover Page'!$B$33 -> Newhurst Energy Recovery Facility
A3: Emissions to Water
A5: Summary of monitoring undertaken and compliance
A6: N/A - no emission to sewer
A13: Commentary on any specific events
A14: Date & Event | C14: Description
A22: Emissions to Water / Sewer
A23: Parameter | D23: Monitoring Frequency | F23: Limit | G23: Target | H23: Max. | I23: Average
A24: No Analysis - no emisison to sewer | D24: N/A

Sheet Air (periodic) H1
A1: =+'Cover Page'!$B$29 -> Annual Performance Report 2025 | E1: =+'Cover Page'!$B$33 -> Newhurst Energy Recovery Facility
A3: Emissions to Air (periodically monitored)
A5: Summary of monitoring undertaken, standards used and compliance | K5: Notes:
A6: All analysis below completed by permit specified method. Where triplicate runs of the measurement is required the reported value is the average of the results. NOTE: PAHs monitoring frequency is annually as per permit Table S3.1. Testing completed 17th - 20th February 2025 | K6: Template may require adjustment for any bespoke monitoring requirements of permit - please also check that all default ELV values, reference periods and the stated oxygen reference value match those for your plant, and edit if necessary!
A9: Results of emissions to air that are periodically monitored - oxygen reference 11%
A10: Substance | C10: Ref. Period | D10: Emission Limit Value | F10: Average | K10: User to add additional tables as necessary, depending on whether quarterly or bi-annual reporting is required for the compliance year
F11: A1 | G11: A2 | H11: A3 | I11: A4 | J11: A5
A12: Hydrogen fluoride | C12: Average of 3 consecutive measurements of at least 30 minutes each | D12: 1 mg/m3 | F12: 0.024 | G12: N/A | H12: N/A | I12: N/A | J12: N/A
A13: Cd and Tl and their compounds | C13: Average of 3 consecutive measurements of at least 30 minutes each | D13: 0.02 mg/m3 | F13: 0.0011 | G13: N/A | H13: N/A | I13: N/A | J13: N/A
A14: Hg and its compounds | C14: Average of 3 consecutive measurements of at least 30 minutes each | D14: 0.02 mg/m3 | F14: 0.0034 | G14: N/A | H14: N/A | I14: N/A | J14: N/A
A15: Sb, As, Pb, Cr, Co, Cu, Mn, Ni, V and their compounds | C15: Average of 3 consecutive measurements of at least 30 minutes each | D15: 0.3 mg/m3 | F15: 0.0943 | G15: N/A | H15: N/A | I15: N/A | J15: N/A
A16: Dioxins & Furans (I-TEQ) | C16: 6-8hrs | D16: 0.06 ng/m3 | F16: 0.0021 | G16: N/A | H16: N/A | I16: N/A | J16: N/A
A17: PCBs (WHO-TEQ Humans / Mammals) | C17: 6-8hrs | D17: None set ng/m3 | F17: 0.000455 | G17: N/A | H17: N/A | I17: N/A | J17: N/A
A18: PCBs (WHO-TEQ Fish) | C18: 6-8hrs | D18: None set ng/m3 | F18: 2.4e-05 | G18: N/A | H18: N/A | I18: N/A | J18: N/A
A19: PCBs (WHO-TEQ Birds) | C19: 6-8hrs | D19: None set ng/m3 | F19: 0.001446 | G19: N/A | H19: N/A | I19: N/A | J19: N/A
A20: Dioxins & Furans (WHO-TEQ Humans / Mammals) | C20: 6-8hrs | D20: None set ng/m3 | F20: 0.002 | G20: N/A | H20: N/A | I20: N/A | J20: N/A
A21: Dioxins & Furans (WHO-TEQ Fish) | C21: 6-8hrs | D21: None set ng/m3 | F21: 0.0022 | G21: N/A | H21: N/A | I21: N/A | J21: N/A
A22: Dioxins & Furans (WHO-TEQ Birds) | C22: 6-8hrs | D22: None set ng/m3 | F22: 0.0041 | G22: N/A | H22: N/A | I22: N/A | J22: N/A
A23: Brominated Dioxins & Furans (I-TEQ) | C23: 6-8hrs | D23: None set ng/m3 | F23: 0.0008 | G23: N/A | H23: N/A | I23: N/A | J23: N/A
A24: Anthanthrene | C24: 6-8hrs | D24: None set µg/m3 | F24: N/A | G24: N/A | H24: N/A | I24: N/A | J24: N/A
A25: Benzo(a)anthracene | C25: 6-8hrs | D25: None set µg/m3 | F25: N/A | G25: N/A | H25: N/A | I25: N/A | J25: N/A
A26: Benzo(a)pyrene | C26: 6-8hrs | D26: None set µg/m3 | F26: N/A | G26: N/A | H26: N/A | I26: N/A | J26: N/A
A27: Benzo(b)fluoranthene | C27: 6-8hrs | D27: None set µg/m3 | F27: N/A | G27: N/A | H27: N/A | I27: N/A | J27: N/A
A28: Benzo(b)naptho(2,1-d) thiophene | C28: 6-8hrs | D28: None set µg/m3 | F28: N/A | G28: N/A | H28: N/A | I28: N/A | J28: N/A
A29: Benzo(c)phenanthrene | C29: 6-8hrs | D29: None set µg/m3 | F29: N/A | G29: N/A | H29: N/A | I29: N/A | J29: N/A
A30: Benzo(ghi)perylene | C30: 6-8hrs | D30: None set µg/m3 | F30: N/A | G30: N/A | H30: N/A | I30: N/A | J30: N/A
A31: Benzo(k)fluoranthene | C31: 6-8hrs | D31: None set µg/m3 | F31: N/A | G31: N/A | H31: N/A | I31: N/A | J31: N/A
A32: Cholanthrene | C32: 6-8hrs | D32: None set µg/m3 | F32: N/A | G32: N/A | H32: N/A | I32: N/A | J32: N/A
A33: Chrysene | C33: 6-8hrs | D33: None set µg/m3 | F33: N/A | G33: N/A | H33: N/A | I33: N/A | J33: N/A
A34: Cyclopenta(cd)pyrene | C34: 6-8hrs | D34: None set µg/m3 | F34: N/A | G34: N/A | H34: N/A | I34: N/A | J34: N/A
A35: Dibenzo(ai)pyrene | C35: 6-8hrs | D35: None set µg/m3 | F35: N/A | G35: N/A | H35: N/A | I35: N/A | J35: N/A
A36: Dibenzo(ah)anthracene | C36: 6-8hrs | D36: None set µg/m3 | F36: N/A | G36: N/A | H36: N/A | I36: N/A | J36: N/A
A37: Fluoranthene | C37: 6-8hrs | D37: None set µg/m3 | F37: N/A | G37: N/A | H37: N/A | I37: N/A | J37: N/A
A38: Indeno(123-cd) pyrene | C38: 6-8hrs | D38: None set µg/m3 | F38: N/A | G38: N/A | H38: N/A | I38: N/A | J38: N/A
A39: Naphthalene | C39: 6-8hrs | D39: None set µg/m3 | F39: N/A | G39: N/A | H39: N/A | I39: N/A | J39: N/A
A40: Comments :
A41: Values quoted above are WITHOUT the uncertainty subtracted. ‘how to assess compliance with an ELV within Monitoring stack emissions: maximum uncertainty values for periodic monitoring - GOV.UK (www.gov.uk) (formerly part of M2)' allows the uncertainty to be substracted before assessment against ELV.

Sheet Air (periodic) H2
A1: =+'Cover Page'!$B$29 -> Annual Performance Report 2025 | E1: =+'Cover Page'!$B$33 -> Newhurst Energy Recovery Facility
A3: Emissions to Air (periodically monitored)
A5: Summary of monitoring undertaken, standards used and compliance | K5: Notes:
A6: All analysis below completed by permit specified method. Where triplicate runs of the measurement is required the reported value is the average of the results. NOTE: PAHs monitoring frequency is annually as per permit Table S3.1 Completed 20th - 22nd August 2025 | K6: Template may require adjustment for any bespoke monitoring requirements of permit - please also check that all default ELV values, reference periods and the stated oxygen reference value match those for your plant, and edit if necessary!
A9: Results of emissions to air that are periodically monitored - oxygen reference 11%
A10: Substance | C10: Ref. Period | D10: Emission Limit Value | F10: Average | K10: User to add additional tables as necessary, depending on whether quarterly or bi-annual reporting is required for the compliance year
F11: A1 | G11: A2 | H11: A3 | I11: A4 | J11: A5
A12: Hydrogen fluoride | C12: Average of 3 consecutive measurements of at least 30 minutes each | D12: 1 mg/m3 | F12: <0.03 | G12: N/A | H12: N/A | I12: N/A | J12: N/A
A13: Cd and Tl and their compounds | C13: Average of 3 consecutive measurements of at least 30 minutes each | D13: 0.02 mg/m3 | F13: <0.001 | G13: N/A | H13: N/A | I13: N/A | J13: N/A
A14: Hg and its compounds | C14: Average of 3 consecutive measurements of at least 30 minutes each | D14: 0.02 mg/m3 | F14: 0.003 | G14: N/A | H14: N/A | I14: N/A | J14: N/A
A15: Sb, As, Pb, Cr, Co, Cu, Mn, Ni, V and their compounds | C15: Average of 3 consecutive measurements of at least 30 minutes each | D15: 0.3 mg/m3 | F15: 0.011 | G15: N/A | H15: N/A | I15: N/A | J15: N/A
A16: Dioxins & Furans (I-TEQ) | C16: 6-8hrs | D16: 0.06 ng/m3 | F16: 0.0521 | G16: N/A | H16: N/A | I16: N/A | J16: N/A
A17: PCBs (WHO-TEQ Humans / Mammals) | C17: 6-8hrs | D17: None set ng/m3 | F17: 0.0031 | G17: N/A | H17: N/A | I17: N/A | J17: N/A
A18: PCBs (WHO-TEQ Fish) | C18: 6-8hrs | D18: None set ng/m3 | F18: 0.00012 | G18: N/A | H18: N/A | I18: N/A | J18: N/A
A19: PCBs (WHO-TEQ Birds) | C19: 6-8hrs | D19: None set ng/m3 | F19: 0.0042 | G19: N/A | H19: N/A | I19: N/A | J19: N/A
A20: Dioxins & Furans (WHO-TEQ Humans / Mammals) | C20: 6-8hrs | D20: None set ng/m3 | F20: 0.0472 | G20: N/A | H20: N/A | I20: N/A | J20: N/A
A21: Dioxins & Furans (WHO-TEQ Fish) | C21: 6-8hrs | D21: None set ng/m3 | F21: 0.0519 | G21: N/A | H21: N/A | I21: N/A | J21: N/A
A22: Dioxins & Furans (WHO-TEQ Birds) | C22: 6-8hrs | D22: None set ng/m3 | F22: 0.0718 | G22: N/A | H22: N/A | I22: N/A | J22: N/A
A23: Brominated Dioxins & Furans (I-TEQ) | C23: 6-8hrs | D23: None set ng/m3 | F23: 0.0013 | G23: N/A | H23: N/A | I23: N/A | J23: N/A
A24: Anthanthrene | C24: 6-8hrs | D24: None set µg/m3 | F24: <0.0014 | G24: N/A | H24: N/A | I24: N/A | J24: N/A
A25: Benzo(a)anthracene | C25: 6-8hrs | D25: None set µg/m3 | F25: 0.004 | G25: N/A | H25: N/A | I25: N/A | J25: N/A
A26: Benzo(a)pyrene | C26: 6-8hrs | D26: None set µg/m3 | F26: 0.0022 | G26: N/A | H26: N/A | I26: N/A | J26: N/A
A27: Benzo(b)fluoranthene | C27: 6-8hrs | D27: None set µg/m3 | F27: 0.004 | G27: N/A | H27: N/A | I27: N/A | J27: N/A
A28: Benzo(b)naptho(2,1-d) thiophene | C28: 6-8hrs | D28: None set µg/m3 | F28: <0.0014 | G28: N/A | H28: N/A | I28: N/A | J28: N/A
A29: Benzo(c)phenanthrene | C29: 6-8hrs | D29: None set µg/m3 | F29: <0.0014 | G29: N/A | H29: N/A | I29: N/A | J29: N/A
A30: Benzo(ghi)perylene | C30: 6-8hrs | D30: None set µg/m3 | F30: 0.0029 | G30: N/A | H30: N/A | I30: N/A | J30: N/A
A31: Benzo(k)fluoranthene | C31: 6-8hrs | D31: None set µg/m3 | F31: 0.0016 | G31: N/A | H31: N/A | I31: N/A | J31: N/A
A32: Cholanthrene | C32: 6-8hrs | D32: None set µg/m3 | F32: <0.0014 | G32: N/A | H32: N/A | I32: N/A | J32: N/A
A33: Chrysene | C33: 6-8hrs | D33: None set µg/m3 | F33: 0.0056 | G33: N/A | H33: N/A | I33: N/A | J33: N/A
A34: Cyclopenta(cd)pyrene | C34: 6-8hrs | D34: None set µg/m3 | F34: 0.0031 | G34: N/A | H34: N/A | I34: N/A | J34: N/A
A35: Dibenzo(ai)pyrene | C35: 6-8hrs | D35: None set µg/m3 | F35: <0.0014 | G35: N/A | H35: N/A | I35: N/A | J35: N/A
A36: Dibenzo(ah)anthracene | C36: 6-8hrs | D36: None set µg/m3 | F36: <0.0014 | G36: N/A | H36: N/A | I36: N/A | J36: N/A
A37: Fluoranthene | C37: 6-8hrs | D37: None set µg/m3 | F37: 0.0547 | G37: N/A | H37: N/A | I37: N/A | J37: N/A
A38: Indeno(123-cd) pyrene | C38: 6-8hrs | D38: None set µg/m3 | F38: 0.0015 | G38: N/A | H38: N/A | I38: N/A | J38: N/A
A39: Naphthalene | C39: 6-8hrs | D39: None set µg/m3 | F39: 2.7 | G39: N/A | H39: N/A | I39: N/A | J39: N/A
A40: Comments :
A41: Values quoted above are WITHOUT the uncertainty subtracted. ‘how to assess compliance with an ELV within Monitoring stack emissions: maximum uncertainty values for periodic monitoring - GOV.UK (www.gov.uk) (formerly part of M2)' allows the uncertainty to be substracted before assessment against ELV.

Sheet Air (CEMS)
A1: =+'Cover Page'!$B$29 -> Annual Performance Report 2025 | I1: =+'Cover Page'!$B$33 -> Newhurst Energy Recovery Facility
A3: Emissions to Air (continuously monitored)
N4: Notes:
A5: Summary of monitoring undertaken, standards used and compliance | N5: Template may require adjustment for any bespoke monitoring requirements of permit
N6: Please check that all default ELV values match those for your plant and edit if necessary!
N7: Report to 1 decimal place
A11: Results of emissions to air that are continuously monitored (maximum and average values for each line) - oxygen reference 11%
A12: Substance | B12: Reference Period | C12: Emission Limit Value | D12: A1 | F12: A2 | H12: A3 | J12: A4 | L12: A5
D13: Max. | E13: Avg. | F13: Max. | G13: Avg. | H13: Max. | I13: Avg. | J13: Max. | K13: Avg. | L13: Max. | M13: Avg.
A14: Oxides of nitrogen | B14: Daily mean | C14: 180 mg/m3 | D14: 169.2 | E14: 155.3 | F14: N/A | G14: N/A | H14: N/A | I14: N/A | J14: N/A | K14: N/A | L14: N/A | M14: N/A
B15: ½ hourly mean | C15: 400 mg/m3 | D15: 254.3 | E15: 155.3 | F15: N/A | G15: N/A | H15: N/A | I15: N/A | J15: N/A | K15: N/A | L15: N/A | M15: N/A
A16: Particulates | B16: Daily mean | C16: 5 mg/m3 | D16: 0.9 | E16: 0.02 | F16: N/A | G16: N/A | H16: N/A | I16: N/A | J16: N/A | K16: N/A | L16: N/A | M16: N/A
B17: ½ hourly mean | C17: 30 mg/m3 | D17: 2.8 | E17: 0.1 | F17: N/A | G17: N/A | H17: N/A | I17: N/A | J17: N/A | K17: N/A | L17: N/A | M17: N/A
A18: Total Organic Carbon | B18: Daily mean | C18: 10 mg/m3 | D18: 0.7 | E18: 0.3 | F18: N/A | G18: N/A | H18: N/A | I18: N/A | J18: N/A | K18: N/A | L18: N/A | M18: N/A
B19: ½ hourly mean | C19: 20 mg/m3 | D19: 13.8 | E19: 0.3 | F19: N/A | G19: N/A | H19: N/A | I19: N/A | J19: N/A | K19: N/A | L19: N/A | M19: N/A
A20: Hydrogen chloride | B20: Daily mean | C20: 8 mg/m3 | D20: 7.5 | E20: 6.9 | F20: N/A | G20: N/A | H20: N/A | I20: N/A | J20: N/A | K20: N/A | L20: N/A | M20: N/A
B21: ½ hourly mean | C21: 60 mg/m3 | D21: 15.4 | E21: 7 | F21: N/A | G21: N/A | H21: N/A | I21: N/A | J21: N/A | K21: N/A | L21: N/A | M21: N/A
A22: Sulphur dioxide | B22: Daily mean | C22: 40 mg/m3 | D22: 24.7 | E22: 4.7 | F22: N/A | G22: N/A | H22: N/A | I22: N/A | J22: N/A | K22: N/A | L22: N/A | M22: N/A
B23: ½ hourly mean | C23: 200 mg/m3 | D23: 72.7 | E23: 4.8 | F23: N/A | G23: N/A | H23: N/A | I23: N/A | J23: N/A | K23: N/A | L23: N/A | M23: N/A
A24: Carbon monoxide | B24: Daily mean | C24: 50 mg/m3 | D24: 22.1 | E24: 7.1 | F24: N/A | G24: N/A | H24: N/A | I24: N/A | J24: N/A | K24: N/A | L24: N/A | M24: N/A
B25: 95%ile 10-min avg * | C25: 150 mg/m3 * | D25: 88.2 | E25: 7.3 | F25: N/A | G25: N/A | H25: N/A | I25: N/A | J25: N/A | K25: N/A | L25: N/A | M25: N/A
A26: Nitrous Oxide | B26: Daily mean | C26: No limit | D26: 0.7 | E26: 0.06 | F26: N/A | G26: N/A | H26: N/A | I26: N/A | J26: N/A | K26: N/A | L26: N/A | M26: N/A
B27: ½ hourly mean | C27: No limit | D27: 5.3 | E27: 0.1 | F27: N/A | G27: N/A | H27: N/A | I27: N/A | J27: N/A | K27: N/A | L27: N/A | M27: N/A
A28: Ammonia | B28: Daily mean | C28: 15 mg/m3 | D28: 0.2 | E28: 0 | F28: N/A | G28: N/A | H28: N/A | I28: N/A | J28: N/A | K28: N/A | L28: N/A | M28: N/A
A29: * = delete as appropriate, depending on whether your plant has half-hourly or 10-min CO ELVs
A30: Comments :

Sheet HCl
A1: =+'Cover Page'!$B$29 -> Annual Performance Report 2025 | E1: =+'Cover Page'!$B$33 -> Newhurst Energy Recovery Facility
A3: Monitoring of Hydrogen Chloride emissions | D3: Whole Installation | G3: See Notes in Cell Q3 | J3: =+A3 -> Monitoring of Hydrogen Chloride emissions | N3: Per Combustion Line | Q3: Notes:
Q4: User to add logic to complete Whole installation, Table A5:G18. From the data in Per Combustion Line, Table J6:O79, subject to No. of lines installed
A5: =+'Cover Page'!C39 -> 2025 | B5: 1/2 Hourly Reference Periods | E5: Daily Reference Periods
A6: mg/Nm3 | B6: 1/2 hourly HCl ELV | C6: Monthly mean of half-hourly averages | D6: Highest half- hourly average | E6: Daily HCl ELV | F6: Monthly mean of daily averages | G6: Highest daily average | J6: =+A5 -> 2025 | K6: mg/Nm3 | L6: Monthly mean of half-hourly averages | M6: Highest half- hourly average | N6: Monthly mean of daily averages | O6: Highest daily average
A7: Jan | B7: 60 | C7: =L7 -> 7 | D7: =M7 -> 9.7 | E7: 8 | F7: =N7 -> 6.9 | G7: =O7 -> 7 | J7: A1 | K7: Jan | L7: 7 | M7: 9.7 | N7: 6.9 | O7: 7
A8: Feb | B8: 60 | C8: =L8 -> 7 | D8: =M8 -> 11.4 | E8: 8 | F8: =N8 -> 6.9 | G8: =O8 -> 7 | K8: Feb | L8: 7 | M8: 11.4 | N8: 6.9 | O8: 7
A9: Mar | B9: 60 | C9: 7 | D9: 12.3 | E9: 8 | F9: 6.9 | G9: 7.1 | K9: Mar | L9: 7 | M9: 12.3 | N9: 6.9 | O9: 7.1 | Q9: Whole Installation table A5:G18:
A10: Apr | B10: 60 | C10: 6.9 | D10: 9.5 | E10: 8 | F10: 6.8 | G10: 7.1 | K10: Apr | L10: 6.9 | M10: 9.5 | N10: 6.8 | O10: 7.1 | Q10: Mean: for 1/2 hourly and daily periods calculate mean of values across all operational combustion lines for the month
A11: May | B11: 60 | C11: 7 | D11: 13.2 | E11: 8 | F11: 7 | G11: 7.3 | K11: May | L11: 7 | M11: 13.2 | N11: 7 | O11: 7.3
A12: Jun | B12: 60 | C12: 7 | D12: 10.1 | E12: 8 | F12: 6.9 | G12: 7.2 | K12: Jun | L12: 7 | M12: 10.1 | N12: 6.9 | O12: 7.2
A13: Jul | B13: 60 | C13: 6.9 | D13: 10 | E13: 8 | F13: 6.8 | G13: 7 | K13: Jul | L13: 6.9 | M13: 10 | N13: 6.8 | O13: 7 | Q13: Maximum: for 1/2 hourly and daily periods use the highest value across all operational combustion lines for the month
A14: Aug | B14: 60 | C14: 7 | D14: 10 | E14: 8 | F14: 6.9 | G14: 7.5 | K14: Aug | L14: 7 | M14: 10 | N14: 6.9 | O14: 7.5
A15: Sep | B15: 60 | C15: 7 | D15: 10.7 | E15: 8 | F15: 6.9 | G15: 7.1 | K15: Sep | L15: 7 | M15: 10.7 | N15: 6.9 | O15: 7.1
A16: Oct | B16: 60 | C16: 6.9 | D16: 10.1 | E16: 8 | F16: 6.9 | G16: 7.1 | K16: Oct | L16: 6.9 | M16: 10.1 | N16: 6.9 | O16: 7.1
A17: Nov | B17: 60 | C17: 6.9 | D17: 15.4 | E17: 8 | F17: 6.9 | G17: 7.1 | K17: Nov | L17: 6.9 | M17: 15.4 | N17: 6.9 | O17: 7.1
A18: Dec | B18: 60 | C18: 6.9 | D18: 10.3 | E18: 8 | F18: 6.9 | G18: 7 | K18: Dec | L18: 6.9 | M18: 10.3 | N18: 6.9 | O18: 7
K19: Annual | L19: =AVERAGE(L7:L18) -> 6.958333333 | M19: =MAX(M7:M18) -> 15.4 | N19: =AVERAGE(N7:N18) -> 6.891666667 | O19: =MAX(O7:O18) -> 7.5
J21: =+A5 -> 2025 | K21: mg/Nm3 | L21: Monthly mean of half-hourly averages | M21: Highest half- hourly average | N21: Monthly mean of daily averages | O21: Highest daily average
J22: A2 | K22: Jan | L22: N/A | M22: N/A | N22: N/A | O22: N/A
K23: Feb | L23: N/A | M23: N/A | N23: N/A | O23: N/A
K24: Mar | L24: N/A | M24: N/A | N24: N/A | O24: N/A
K25: Apr | L25: N/A | M25: N/A | N25: N/A | O25: N/A
K26: May | L26: N/A | M26: N/A | N26: N/A | O26: N/A
K27: Jun | L27: N/A | M27: N/A | N27: N/A | O27: N/A
K28: Jul | L28: N/A | M28: N/A | N28: N/A | O28: N/A
K29: Aug | L29: N/A | M29: N/A | N29: N/A | O29: N/A
K30: Sep | L30: N/A | M30: N/A | N30: N/A | O30: N/A
K31: Oct | L31: N/A | M31: N/A | N31: N/A | O31: N/A
K32: Nov | L32: N/A | M32: N/A | N32: N/A | O32: N/A
K33: Dec | L33: N/A | M33: N/A | N33: N/A | O33: N/A
K34: Annual | L34: =AVERAGE(L22:L33) ->  | M34: =MAX(M22:M33) -> 0 | N34: =AVERAGE(N22:N33) ->  | O34: =MAX(O22:O33) -> 0
J36: =+A5 -> 2025 | K36: mg/Nm3 | L36: Monthly mean of half-hourly averages | M36: Highest half- hourly average | N36: Monthly mean of daily averages | O36: Highest daily average
J37: A3 | K37: Jan | L37: N/A | M37: N/A | N37: N/A | O37: N/A
K38: Feb | L38: N/A | M38: N/A | N38: N/A | O38: N/A
K39: Mar | L39: N/A | M39: N/A | N39: N/A | O39: N/A
K40: Apr | L40: N/A | M40: N/A | N40: N/A | O40: N/A
K41: May | L41: N/A | M41: N/A | N41: N/A | O41: N/A
K42: Jun | L42: N/A | M42: N/A | N42: N/A | O42: N/A
K43: Jul | L43: N/A | M43: N/A | N43: N/A | O43: N/A
K44: Aug | L44: N/A | M44: N/A | N44: N/A | O44: N/A
K45: Sep | L45: N/A | M45: N/A | N45: N/A | O45: N/A
K46: Oct | L46: N/A | M46: N/A | N46: N/A | O46: N/A
K47: Nov | L47: N/A | M47: N/A | N47: N/A | O47: N/A
A48: Comments : | K48: Dec | L48: N/A | M48: N/A | N48: N/A | O48: N/A
K49: Annual | L49: =AVERAGE(L37:L48) ->  | M49: =MAX(M37:M48) -> 0 | N49: =AVERAGE(N37:N48) ->  | O49: =MAX(O37:O48) -> 0
J51: =+A5 -> 2025 | K51: mg/Nm3 | L51: Monthly mean of half-hourly averages | M51: Highest half- hourly average | N51: Monthly mean of daily averages | O51: Highest daily average
J52: A4 | K52: Jan | L52: N/A | M52: N/A | N52: N/A | O52: N/A
K53: Feb | L53: N/A | M53: N/A | N53: N/A | O53: N/A
K54: Mar | L54: N/A | M54: N/A | N54: N/A | O54: N/A
K55: Apr | L55: N/A | M55: N/A | N55: N/A | O55: N/A
K56: May | L56: N/A | M56: N/A | N56: N/A | O56: N/A
K57: Jun | L57: N/A | M57: N/A | N57: N/A | O57: N/A
K58: Jul | L58: N/A | M58: N/A | N58: N/A | O58: N/A
K59: Aug | L59: N/A | M59: N/A | N59: N/A | O59: N/A
K60: Sep | L60: N/A | M60: N/A | N60: N/A | O60: N/A
K61: Oct | L61: N/A | M61: N/A | N61: N/A | O61: N/A
K62: Nov | L62: N/A | M62: N/A | N62: N/A | O62: N/A
K63: Dec | L63: N/A | M63: N/A | N63: N/A | O63: N/A
K64: Annual | L64: =AVERAGE(L52:L63) ->  | M64: =MAX(M52:M63) -> 0 | N64: =AVERAGE(N52:N63) ->  | O64: =MAX(O52:O63) -> 0
J66: =+A5 -> 2025 | K66: mg/Nm3 | L66: Monthly mean of half-hourly averages | M66: Highest half- hourly average | N66: Monthly mean of daily averages | O66: Highest daily average
J67: A5 | K67: Jan | L67: N/A | M67: N/A | N67: N/A | O67: N/A
K68: Feb | L68: N/A | M68: N/A | N68: N/A | O68: N/A
K69: Mar | L69: N/A | M69: N/A | N69: N/A | O69: N/A
K70: Apr | L70: N/A | M70: N/A | N70: N/A | O70: N/A
K71: May | L71: N/A | M71: N/A | N71: N/A | O71: N/A
K72: Jun | L72: N/A | M72: N/A | N72: N/A | O72: N/A
K73: Jul | L73: N/A | M73: N/A | N73: N/A | O73: N/A
K74: Aug | L74: N/A | M74: N/A | N74: N/A | O74: N/A
K75: Sep | L75: N/A | M75: N/A | N75: N/A | O75: N/A
K76: Oct | L76: N/A | M76: N/A | N76: N/A | O76: N/A
K77: Nov | L77: N/A | M77: N/A | N77: N/A | O77: N/A
K78: Dec | L78: N/A | M78: N/A | N78: N/A | O78: N/A
K79: Annual | L79: =AVERAGE(L67:L78) ->  | M79: =MAX(M67:M78) -> 0 | N79: =AVERAGE(N67:N78) ->  | O79: =MAX(O67:O78) -> 0

Sheet SO2
A1: =+'Cover Page'!$B$29 -> Annual Performance Report 2025 | E1: =+'Cover Page'!$B$33 -> Newhurst Energy Recovery Facility
A3: Monitoring of Sulphur dioxide emissions | D3: Whole Installation | G3: See Notes in Cell Q3 | J3: =+A3 -> Monitoring of Sulphur dioxide emissions | N3: Per Combustion Line | Q3: Notes:
Q4: User to add logic to complete Whole installation, Table A5:G18. From the data in Per Combustion Line, Table J6:O79, subject to No. of lines installed
A5: =+'Cover Page'!C39 -> 2025 | B5: 1/2 Hourly Reference Periods | E5: Daily Reference Periods
A6: mg/Nm3 | B6: 1/2 hourly SO2 ELV | C6: Monthly mean of half-hourly averages | D6: Highest half- hourly average | E6: Daily SO2 ELV | F6: Monthly mean of daily averages | G6: Highest daily average | J6: =+A5 -> 2025 | K6: mg/Nm3 | L6: Monthly mean of half-hourly averages | M6: Highest half- hourly average | N6: Monthly mean of daily averages | O6: Highest daily average
A7: Jan | B7: 200 | C7: =L7 -> 4.1 | D7: =M7 -> 20.8 | E7: 40 | F7: =N7 -> 4 | G7: =O7 -> 6.7 | J7: A1 | K7: Jan | L7: 4.1 | M7: 20.8 | N7: 4 | O7: 6.7
A8: Feb | B8: 200 | C8: =L8 -> 3.6 | D8: =M8 -> 16.6 | E8: 40 | F8: =N8 -> 3.6 | G8: =O8 -> 6.6 | K8: Feb | L8: 3.6 | M8: 16.6 | N8: 3.6 | O8: 6.6
A9: Mar | B9: 200 | C9: 4.1 | D9: 37.8 | E9: 40 | F9: 4 | G9: 5.7 | K9: Mar | L9: 4.1 | M9: 37.8 | N9: 4 | O9: 5.7 | Q9: Whole Installation table A5:G18:
A10: Apr | B10: 200 | C10: 7.9 | D10: 31.8 | E10: 40 | F10: 7.2 | G10: 24.7 | K10: Apr | L10: 7.9 | M10: 31.8 | N10: 7.2 | O10: 24.7 | Q10: Mean: for 1/2 hourly and daily periods calculate mean of values across all operational combustion lines for the month
A11: May | B11: 200 | C11: 3.5 | D11: 21.1 | E11: 40 | F11: 3.5 | G11: 6.1 | K11: May | L11: 3.5 | M11: 21.1 | N11: 3.5 | O11: 6.1
A12: Jun | B12: 200 | C12: 3.4 | D12: 17.6 | E12: 40 | F12: 3.4 | G12: 6.3 | K12: Jun | L12: 3.4 | M12: 17.6 | N12: 3.4 | O12: 6.3
A13: Jul | B13: 200 | C13: 5.2 | D13: 14.5 | E13: 40 | F13: 5.1 | G13: 7.4 | K13: Jul | L13: 5.2 | M13: 14.5 | N13: 5.1 | O13: 7.4 | Q13: Maximum: for 1/2 hourly and daily periods use the highest value across all operational combustion lines for the month
A14: Aug | B14: 200 | C14: 4.5 | D14: 15.1 | E14: 40 | F14: 4.5 | G14: 7.4 | K14: Aug | L14: 4.5 | M14: 15.1 | N14: 4.5 | O14: 7.4
A15: Sep | B15: 200 | C15: 4.9 | D15: 31.3 | E15: 40 | F15: 4.9 | G15: 6.7 | K15: Sep | L15: 4.9 | M15: 31.3 | N15: 4.9 | O15: 6.7
A16: Oct | B16: 200 | C16: 4.8 | D16: 18.2 | E16: 40 | F16: 4.7 | G16: 6.7 | K16: Oct | L16: 4.8 | M16: 18.2 | N16: 4.7 | O16: 6.7
A17: Nov | B17: 200 | C17: 5.2 | D17: 72.7 | E17: 40 | F17: 5.2 | G17: 7.9 | K17: Nov | L17: 5.2 | M17: 72.7 | N17: 5.2 | O17: 7.9
A18: Dec | B18: 200 | C18: 5.8 | D18: 22.7 | E18: 40 | F18: 5.7 | G18: 7.5 | K18: Dec | L18: 5.8 | M18: 22.7 | N18: 5.7 | O18: 7.5
K19: Annual | L19: =AVERAGE(L7:L18) -> 4.75 | M19: =MAX(M7:M18) -> 72.7 | N19: =AVERAGE(N7:N18) -> 4.65 | O19: =MAX(O7:O18) -> 24.7
J21: =+A5 -> 2025 | K21: mg/Nm3 | L21: Monthly mean of half-hourly averages | M21: Highest half- hourly average | N21: Monthly mean of daily averages | O21: Highest daily average
J22: A2 | K22: Jan | L22: N/A | M22: N/A | N22: N/A | O22: N/A
K23: Feb | L23: N/A | M23: N/A | N23: N/A | O23: N/A
K24: Mar | L24: N/A | M24: N/A | N24: N/A | O24: N/A
K25: Apr | L25: N/A | M25: N/A | N25: N/A | O25: N/A
K26: May | L26: N/A | M26: N/A | N26: N/A | O26: N/A
K27: Jun | L27: N/A | M27: N/A | N27: N/A | O27: N/A
K28: Jul | L28: N/A | M28: N/A | N28: N/A | O28: N/A
K29: Aug | L29: N/A | M29: N/A | N29: N/A | O29: N/A
K30: Sep | L30: N/A | M30: N/A | N30: N/A | O30: N/A
K31: Oct | L31: N/A | M31: N/A | N31: N/A | O31: N/A
K32: Nov | L32: N/A | M32: N/A | N32: N/A | O32: N/A
K33: Dec | L33: N/A | M33: N/A | N33: N/A | O33: N/A
K34: Annual | L34: =AVERAGE(L22:L33) ->  | M34: =MAX(M22:M33) -> 0 | N34: =AVERAGE(N22:N33) ->  | O34: =MAX(O22:O33) -> 0
J36: =+A5 -> 2025 | K36: mg/Nm3 | L36: Monthly mean of half-hourly averages | M36: Highest half- hourly average | N36: Monthly mean of daily averages | O36: Highest daily average
J37: A3 | K37: Jan | L37: N/A | M37: N/A | N37: N/A | O37: N/A
K38: Feb | L38: N/A | M38: N/A | N38: N/A | O38: N/A
K39: Mar | L39: N/A | M39: N/A | N39: N/A | O39: N/A
K40: Apr | L40: N/A | M40: N/A | N40: N/A | O40: N/A
K41: May | L41: N/A | M41: N/A | N41: N/A | O41: N/A
K42: Jun | L42: N/A | M42: N/A | N42: N/A | O42: N/A
K43: Jul | L43: N/A | M43: N/A | N43: N/A | O43: N/A
K44: Aug | L44: N/A | M44: N/A | N44: N/A | O44: N/A
K45: Sep | L45: N/A | M45: N/A | N45: N/A | O45: N/A
K46: Oct | L46: N/A | M46: N/A | N46: N/A | O46: N/A
K47: Nov | L47: N/A | M47: N/A | N47: N/A | O47: N/A
A48: Comments : | K48: Dec | L48: N/A | M48: N/A | N48: N/A | O48: N/A
K49: Annual | L49: =AVERAGE(L37:L48) ->  | M49: =MAX(M37:M48) -> 0 | N49: =AVERAGE(N37:N48) ->  | O49: =MAX(O37:O48) -> 0
J51: =+A5 -> 2025 | K51: mg/Nm3 | L51: Monthly mean of half-hourly averages | M51: Highest half- hourly average | N51: Monthly mean of daily averages | O51: Highest daily average
J52: A4 | K52: Jan | L52: N/A | M52: N/A | N52: N/A | O52: N/A
K53: Feb | L53: N/A | M53: N/A | N53: N/A | O53: N/A
K54: Mar | L54: N/A | M54: N/A | N54: N/A | O54: N/A
K55: Apr | L55: N/A | M55: N/A | N55: N/A | O55: N/A
K56: May | L56: N/A | M56: N/A | N56: N/A | O56: N/A
K57: Jun | L57: N/A | M57: N/A | N57: N/A | O57: N/A
K58: Jul | L58: N/A | M58: N/A | N58: N/A | O58: N/A
K59: Aug | L59: N/A | M59: N/A | N59: N/A | O59: N/A
K60: Sep | L60: N/A | M60: N/A | N60: N/A | O60: N/A
K61: Oct | L61: N/A | M61: N/A | N61: N/A | O61: N/A
K62: Nov | L62: N/A | M62: N/A | N62: N/A | O62: N/A
K63: Dec | L63: N/A | M63: N/A | N63: N/A | O63: N/A
K64: Annual | L64: =AVERAGE(L52:L63) ->  | M64: =MAX(M52:M63) -> 0 | N64: =AVERAGE(N52:N63) ->  | O64: =MAX(O52:O63) -> 0
J66: =+A5 -> 2025 | K66: mg/Nm3 | L66: Monthly mean of half-hourly averages | M66: Highest half- hourly average | N66: Monthly mean of daily averages | O66: Highest daily average
J67: A5 | K67: Jan | L67: N/A | M67: N/A | N67: N/A | O67: N/A
K68: Feb | L68: N/A | M68: N/A | N68: N/A | O68: N/A
K69: Mar | L69: N/A | M69: N/A | N69: N/A | O69: N/A
K70: Apr | L70: N/A | M70: N/A | N70: N/A | O70: N/A
K71: May | L71: N/A | M71: N/A | N71: N/A | O71: N/A
K72: Jun | L72: N/A | M72: N/A | N72: N/A | O72: N/A
K73: Jul | L73: N/A | M73: N/A | N73: N/A | O73: N/A
K74: Aug | L74: N/A | M74: N/A | N74: N/A | O74: N/A
K75: Sep | L75: N/A | M75: N/A | N75: N/A | O75: N/A
K76: Oct | L76: N/A | M76: N/A | N76: N/A | O76: N/A
K77: Nov | L77: N/A | M77: N/A | N77: N/A | O77: N/A
K78: Dec | L78: N/A | M78: N/A | N78: N/A | O78: N/A
K79: Annual | L79: =AVERAGE(L67:L78) ->  | M79: =MAX(M67:M78) -> 0 | N79: =AVERAGE(N67:N78) ->  | O79: =MAX(O67:O78) -> 0

Sheet NOx
A1: =+'Cover Page'!$B$29 -> Annual Performance Report 2025 | E1: =+'Cover Page'!$B$33 -> Newhurst Energy Recovery Facility
A3: Monitoring of Oxides of Nitrogen emissions | D3: Whole Installation | G3: See Notes in Cell Q3 | J3: =+A3 -> Monitoring of Oxides of Nitrogen emissions | N3: Per Combustion Line | Q3: Notes:
Q4: User to add logic to complete Whole installation, Table A5:G18. From the data in Per Combustion Line, Table J6:O79, subject to No. of lines installed
A5: =+'Cover Page'!C39 -> 2025 | B5: 1/2 Hourly Reference Periods | E5: Daily Reference Periods
A6: mg/Nm3 | B6: 1/2 hourly NOx ELV | C6: Monthly mean of half-hourly averages | D6: Highest half- hourly average | E6: Daily NOx ELV | F6: Monthly mean of daily averages | G6: Highest daily average | J6: =+A5 -> 2025 | K6: mg/Nm3 | L6: Monthly mean of half-hourly averages | M6: Highest half- hourly average | N6: Monthly mean of daily averages | O6: Highest daily average
A7: Jan | B7: 400 | C7: =L7 -> 151.5 | D7: =M7 -> 203.2 | E7: 180 | F7: =N7 -> 151.3 | G7: =O7 -> 169.2 | J7: A1 | K7: Jan | L7: 151.5 | M7: 203.2 | N7: 151.3 | O7: 169.2
A8: Feb | B8: 400 | C8: =L8 -> 143.8 | D8: =M8 -> 185.8 | E8: 180 | F8: =N8 -> 143.7 | G8: =O8 -> 154 | K8: Feb | L8: 143.8 | M8: 185.8 | N8: 143.7 | O8: 154
A9: Mar | B9: 400 | C9: 143.1 | D9: 186.6 | E9: 180 | F9: 142.9 | G9: 152.1 | K9: Mar | L9: 143.1 | M9: 186.6 | N9: 142.9 | O9: 152.1 | Q9: Whole Installation table A5:G18:
A10: Apr | B10: 400 | C10: 148.8 | D10: 254.3 | E10: 180 | F10: 148.6 | G10: 158.2 | K10: Apr | L10: 148.8 | M10: 254.3 | N10: 148.6 | O10: 158.2 | Q10: Mean: for 1/2 hourly and daily periods calculate mean of values across all operational combustion lines for the month
A11: May | B11: 400 | C11: 142.2 | D11: 220.6 | E11: 180 | F11: 142.2 | G11: 160.2 | K11: May | L11: 142.2 | M11: 220.6 | N11: 142.2 | O11: 160.2
A12: Jun | B12: 400 | C12: 157.5 | D12: 229 | E12: 180 | F12: 157.7 | G12: 165.5 | K12: Jun | L12: 157.5 | M12: 229 | N12: 157.7 | O12: 165.5
A13: Jul | B13: 400 | C13: 161.2 | D13: 243.8 | E13: 180 | F13: 161.2 | G13: 165.9 | K13: Jul | L13: 161.2 | M13: 243.8 | N13: 161.2 | O13: 165.9 | Q13: Maximum: for 1/2 hourly and daily periods use the highest value across all operational combustion lines for the month
A14: Aug | B14: 400 | C14: 161 | D14: 216.8 | E14: 180 | F14: 160.9 | G14: 165 | K14: Aug | L14: 161 | M14: 216.8 | N14: 160.9 | O14: 165
A15: Sep | B15: 400 | C15: 163.4 | D15: 217.5 | E15: 180 | F15: 163.2 | G15: 166.3 | K15: Sep | L15: 163.4 | M15: 217.5 | N15: 163.2 | O15: 166.3
A16: Oct | B16: 400 | C16: 162.4 | D16: 214.7 | E16: 180 | F16: 162.4 | G16: 165.3 | K16: Oct | L16: 162.4 | M16: 214.7 | N16: 162.4 | O16: 165.3
A17: Nov | B17: 400 | C17: 164.7 | D17: 209.7 | E17: 180 | F17: 164.6 | G17: 165.9 | K17: Nov | L17: 164.7 | M17: 209.7 | N17: 164.6 | O17: 165.9
A18: Dec | B18: 400 | C18: 164.5 | D18: 201.7 | E18: 180 | F18: 164.4 | G18: 165.9 | K18: Dec | L18: 164.5 | M18: 201.7 | N18: 164.4 | O18: 165.9
K19: Annual | L19: =AVERAGE(L7:L18) -> 155.3416667 | M19: =MAX(M7:M18) -> 254.3 | N19: =AVERAGE(N7:N18) -> 155.2583333 | O19: =MAX(O7:O18) -> 169.2
J21: =+A5 -> 2025 | K21: mg/Nm3 | L21: Monthly mean of half-hourly averages | M21: Highest half- hourly average | N21: Monthly mean of daily averages | O21: Highest daily average
J22: A2 | K22: Jan | L22: N/A | M22: N/A | N22: N/A | O22: N/A
K23: Feb | L23: N/A | M23: N/A | N23: N/A | O23: N/A
K24: Mar | L24: N/A | M24: N/A | N24: N/A | O24: N/A
K25: Apr | L25: N/A | M25: N/A | N25: N/A | O25: N/A
K26: May | L26: N/A | M26: N/A | N26: N/A | O26: N/A
K27: Jun | L27: N/A | M27: N/A | N27: N/A | O27: N/A
K28: Jul | L28: N/A | M28: N/A | N28: N/A | O28: N/A
K29: Aug | L29: N/A | M29: N/A | N29: N/A | O29: N/A
K30: Sep | L30: N/A | M30: N/A | N30: N/A | O30: N/A
K31: Oct | L31: N/A | M31: N/A | N31: N/A | O31: N/A
K32: Nov | L32: N/A | M32: N/A | N32: N/A | O32: N/A
K33: Dec | L33: N/A | M33: N/A | N33: N/A | O33: N/A
K34: Annual | L34: =AVERAGE(L22:L33) ->  | M34: =MAX(M22:M33) -> 0 | N34: =AVERAGE(N22:N33) ->  | O34: =MAX(O22:O33) -> 0
J36: =+A5 -> 2025 | K36: mg/Nm3 | L36: Monthly mean of half-hourly averages | M36: Highest half- hourly average | N36: Monthly mean of daily averages | O36: Highest daily average
J37: A3 | K37: Jan | L37: N/A | M37: N/A | N37: N/A | O37: N/A
K38: Feb | L38: N/A | M38: N/A | N38: N/A | O38: N/A
K39: Mar | L39: N/A | M39: N/A | N39: N/A | O39: N/A
K40: Apr | L40: N/A | M40: N/A | N40: N/A | O40: N/A
K41: May | L41: N/A | M41: N/A | N41: N/A | O41: N/A
K42: Jun | L42: N/A | M42: N/A | N42: N/A | O42: N/A
K43: Jul | L43: N/A | M43: N/A | N43: N/A | O43: N/A
K44: Aug | L44: N/A | M44: N/A | N44: N/A | O44: N/A
K45: Sep | L45: N/A | M45: N/A | N45: N/A | O45: N/A
K46: Oct | L46: N/A | M46: N/A | N46: N/A | O46: N/A
K47: Nov | L47: N/A | M47: N/A | N47: N/A | O47: N/A
A48: Comments : | K48: Dec | L48: N/A | M48: N/A | N48: N/A | O48: N/A
K49: Annual | L49: =AVERAGE(L37:L48) ->  | M49: =MAX(M37:M48) -> 0 | N49: =AVERAGE(N37:N48) ->  | O49: =MAX(O37:O48) -> 0
J51: =+A5 -> 2025 | K51: mg/Nm3 | L51: Monthly mean of half-hourly averages | M51: Highest half- hourly average | N51: Monthly mean of daily averages | O51: Highest daily average
J52: A4 | K52: Jan | L52: N/A | M52: N/A | N52: N/A | O52: N/A
K53: Feb | L53: N/A | M53: N/A | N53: N/A | O53: N/A
K54: Mar | L54: N/A | M54: N/A | N54: N/A | O54: N/A
K55: Apr | L55: N/A | M55: N/A | N55: N/A | O55: N/A
K56: May | L56: N/A | M56: N/A | N56: N/A | O56: N/A
K57: Jun | L57: N/A | M57: N/A | N57: N/A | O57: N/A
K58: Jul | L58: N/A | M58: N/A | N58: N/A | O58: N/A
K59: Aug | L59: N/A | M59: N/A | N59: N/A | O59: N/A
K60: Sep | L60: N/A | M60: N/A | N60: N/A | O60: N/A
K61: Oct | L61: N/A | M61: N/A | N61: N/A | O61: N/A
K62: Nov | L62: N/A | M62: N/A | N62: N/A | O62: N/A
K63: Dec | L63: N/A | M63: N/A | N63: N/A | O63: N/A
K64: Annual | L64: =AVERAGE(L52:L63) ->  | M64: =MAX(M52:M63) -> 0 | N64: =AVERAGE(N52:N63) ->  | O64: =MAX(O52:O63) -> 0
J66: =+A5 -> 2025 | K66: mg/Nm3 | L66: Monthly mean of half-hourly averages | M66: Highest half- hourly average | N66: Monthly mean of daily averages | O66: Highest daily average
J67: A5 | K67: Jan | L67: N/A | M67: N/A | N67: N/A | O67: N/A
K68: Feb | L68: N/A | M68: N/A | N68: N/A | O68: N/A
K69: Mar | L69: N/A | M69: N/A | N69: N/A | O69: N/A
K70: Apr | L70: N/A | M70: N/A | N70: N/A | O70: N/A
K71: May | L71: N/A | M71: N/A | N71: N/A | O71: N/A
K72: Jun | L72: N/A | M72: N/A | N72: N/A | O72: N/A
K73: Jul | L73: N/A | M73: N/A | N73: N/A | O73: N/A
K74: Aug | L74: N/A | M74: N/A | N74: N/A | O74: N/A
K75: Sep | L75: N/A | M75: N/A | N75: N/A | O75: N/A
K76: Oct | L76: N/A | M76: N/A | N76: N/A | O76: N/A
K77: Nov | L77: N/A | M77: N/A | N77: N/A | O77: N/A
K78: Dec | L78: N/A | M78: N/A | N78: N/A | O78: N/A
K79: Annual | L79: =AVERAGE(L67:L78) ->  | M79: =MAX(M67:M78) -> 0 | N79: =AVERAGE(N67:N78) ->  | O79: =MAX(O67:O78) -> 0

Sheet TOC
A1: =+'Cover Page'!$B$29 -> Annual Performance Report 2025 | E1: =+'Cover Page'!$B$33 -> Newhurst Energy Recovery Facility
A3: Monitoring of Total organic carbon emissions | D3: Whole Installation | G3: See Notes in Cell Q3 | J3: =+A3 -> Monitoring of Total organic carbon emissions | N3: Per Combustion Line | Q3: Notes:
Q4: User to add logic to complete Whole installation, Table A5:G18. From the data in Per Combustion Line, Table J6:O79, subject to No. of lines installed
A5: =+'Cover Page'!C39 -> 2025 | B5: 1/2 Hourly Reference Periods | E5: Daily Reference Periods
A6: mg/Nm3 | B6: 1/2 hourly TOC ELV | C6: Monthly mean of half-hourly averages | D6: Highest half- hourly average | E6: Daily TOC ELV | F6: Monthly mean of daily averages | G6: Highest daily average | J6: =+A5 -> 2025 | K6: mg/Nm3 | L6: Monthly mean of half-hourly averages | M6: Highest half- hourly average | N6: Monthly mean of daily averages | O6: Highest daily average
A7: Jan | B7: 20 | C7: =L7 -> 0.3 | D7: =M7 -> 8.1 | E7: 10 | F7: =N7 -> 0.2 | G7: =O7 -> 0.6 | J7: A1 | K7: Jan | L7: 0.3 | M7: 8.1 | N7: 0.2 | O7: 0.6
A8: Feb | B8: 20 | C8: =L8 -> 0.3 | D8: =M8 -> 7 | E8: 10 | F8: =N8 -> 0.2 | G8: =O8 -> 0.5 | K8: Feb | L8: 0.3 | M8: 7 | N8: 0.2 | O8: 0.5
A9: Mar | B9: 20 | C9: 0.3 | D9: 8.3 | E9: 10 | F9: 0.3 | G9: 0.7 | K9: Mar | L9: 0.3 | M9: 8.3 | N9: 0.3 | O9: 0.7 | Q9: Whole Installation table A5:G18:
A10: Apr | B10: 20 | C10: 0.4 | D10: 13.8 | E10: 10 | F10: 0.3 | G10: 0.6 | K10: Apr | L10: 0.4 | M10: 13.8 | N10: 0.3 | O10: 0.6 | Q10: Mean: for 1/2 hourly and daily periods calculate mean of values across all operational combustion lines for the month
A11: May | B11: 20 | C11: 0.3 | D11: 12.7 | E11: 10 | F11: 0.3 | G11: 0.5 | K11: May | L11: 0.3 | M11: 12.7 | N11: 0.3 | O11: 0.5
A12: Jun | B12: 20 | C12: 0.3 | D12: 13.1 | E12: 10 | F12: 0.3 | G12: 0.6 | K12: Jun | L12: 0.3 | M12: 13.1 | N12: 0.3 | O12: 0.6
A13: Jul | B13: 20 | C13: 0.3 | D13: 8 | E13: 10 | F13: 0.3 | G13: 0.5 | K13: Jul | L13: 0.3 | M13: 8 | N13: 0.3 | O13: 0.5 | Q13: Maximum: for 1/2 hourly and daily periods use the highest value across all operational combustion lines for the month
A14: Aug | B14: 20 | C14: 0.4 | D14: 6.3 | E14: 10 | F14: 0.3 | G14: 0.6 | K14: Aug | L14: 0.4 | M14: 6.3 | N14: 0.3 | O14: 0.6
A15: Sep | B15: 20 | C15: 0.3 | D15: 7.1 | E15: 10 | F15: 0.3 | G15: 0.5 | K15: Sep | L15: 0.3 | M15: 7.1 | N15: 0.3 | O15: 0.5
A16: Oct | B16: 20 | C16: 0.3 | D16: 8.4 | E16: 10 | F16: 0.3 | G16: 0.5 | K16: Oct | L16: 0.3 | M16: 8.4 | N16: 0.3 | O16: 0.5
A17: Nov | B17: 20 | C17: 0.4 | D17: 9.2 | E17: 10 | F17: 0.3 | G17: 0.6 | K17: Nov | L17: 0.4 | M17: 9.2 | N17: 0.3 | O17: 0.6
A18: Dec | B18: 20 | C18: 0.3 | D18: 8.6 | E18: 10 | F18: 0.3 | G18: 0.5 | K18: Dec | L18: 0.3 | M18: 8.6 | N18: 0.3 | O18: 0.5
K19: Annual | L19: =AVERAGE(L7:L18) -> 0.325 | M19: =MAX(M7:M18) -> 13.8 | N19: =AVERAGE(N7:N18) -> 0.2833333333 | O19: =MAX(O7:O18) -> 0.7
J21: =+A5 -> 2025 | K21: mg/Nm3 | L21: Monthly mean of half-hourly averages | M21: Highest half- hourly average | N21: Monthly mean of daily averages | O21: Highest daily average
J22: A2 | K22: Jan | L22: N/A | M22: N/A | N22: N/A | O22: N/A
K23: Feb | L23: N/A | M23: N/A | N23: N/A | O23: N/A
K24: Mar | L24: N/A | M24: N/A | N24: N/A | O24: N/A
K25: Apr | L25: N/A | M25: N/A | N25: N/A | O25: N/A
K26: May | L26: N/A | M26: N/A | N26: N/A | O26: N/A
K27: Jun | L27: N/A | M27: N/A | N27: N/A | O27: N/A
K28: Jul | L28: N/A | M28: N/A | N28: N/A | O28: N/A
K29: Aug | L29: N/A | M29: N/A | N29: N/A | O29: N/A
K30: Sep | L30: N/A | M30: N/A | N30: N/A | O30: N/A
K31: Oct | L31: N/A | M31: N/A | N31: N/A | O31: N/A
K32: Nov | L32: N/A | M32: N/A | N32: N/A | O32: N/A
K33: Dec | L33: N/A | M33: N/A | N33: N/A | O33: N/A
K34: Annual | L34: =AVERAGE(L22:L33) ->  | M34: =MAX(M22:M33) -> 0 | N34: =AVERAGE(N22:N33) ->  | O34: =MAX(O22:O33) -> 0
J36: =+A5 -> 2025 | K36: mg/Nm3 | L36: Monthly mean of half-hourly averages | M36: Highest half- hourly average | N36: Monthly mean of daily averages | O36: Highest daily average
J37: A3 | K37: Jan | L37: N/A | M37: N/A | N37: N/A | O37: N/A
K38: Feb | L38: N/A | M38: N/A | N38: N/A | O38: N/A
K39: Mar | L39: N/A | M39: N/A | N39: N/A | O39: N/A
K40: Apr | L40: N/A | M40: N/A | N40: N/A | O40: N/A
K41: May | L41: N/A | M41: N/A | N41: N/A | O41: N/A
K42: Jun | L42: N/A | M42: N/A | N42: N/A | O42: N/A
K43: Jul | L43: N/A | M43: N/A | N43: N/A | O43: N/A
K44: Aug | L44: N/A | M44: N/A | N44: N/A | O44: N/A
K45: Sep | L45: N/A | M45: N/A | N45: N/A | O45: N/A
K46: Oct | L46: N/A | M46: N/A | N46: N/A | O46: N/A
K47: Nov | L47: N/A | M47: N/A | N47: N/A | O47: N/A
A48: Comments : | K48: Dec | L48: N/A | M48: N/A | N48: N/A | O48: N/A
K49: Annual | L49: =AVERAGE(L37:L48) ->  | M49: =MAX(M37:M48) -> 0 | N49: =AVERAGE(N37:N48) ->  | O49: =MAX(O37:O48) -> 0
J51: =+A5 -> 2025 | K51: mg/Nm3 | L51: Monthly mean of half-hourly averages | M51: Highest half- hourly average | N51: Monthly mean of daily averages | O51: Highest daily average
J52: A4 | K52: Jan | L52: N/A | M52: N/A | N52: N/A | O52: N/A
K53: Feb | L53: N/A | M53: N/A | N53: N/A | O53: N/A
K54: Mar | L54: N/A | M54: N/A | N54: N/A | O54: N/A
K55: Apr | L55: N/A | M55: N/A | N55: N/A | O55: N/A
K56: May | L56: N/A | M56: N/A | N56: N/A | O56: N/A
K57: Jun | L57: N/A | M57: N/A | N57: N/A | O57: N/A
K58: Jul | L58: N/A | M58: N/A | N58: N/A | O58: N/A
K59: Aug | L59: N/A | M59: N/A | N59: N/A | O59: N/A
K60: Sep | L60: N/A | M60: N/A | N60: N/A | O60: N/A
K61: Oct | L61: N/A | M61: N/A | N61: N/A | O61: N/A
K62: Nov | L62: N/A | M62: N/A | N62: N/A | O62: N/A
K63: Dec | L63: N/A | M63: N/A | N63: N/A | O63: N/A
K64: Annual | L64: =AVERAGE(L52:L63) ->  | M64: =MAX(M52:M63) -> 0 | N64: =AVERAGE(N52:N63) ->  | O64: =MAX(O52:O63) -> 0
J66: =+A5 -> 2025 | K66: mg/Nm3 | L66: Monthly mean of half-hourly averages | M66: Highest half- hourly average | N66: Monthly mean of daily averages | O66: Highest daily average
J67: A5 | K67: Jan | L67: N/A | M67: N/A | N67: N/A | O67: N/A
K68: Feb | L68: N/A | M68: N/A | N68: N/A | O68: N/A
K69: Mar | L69: N/A | M69: N/A | N69: N/A | O69: N/A
K70: Apr | L70: N/A | M70: N/A | N70: N/A | O70: N/A
K71: May | L71: N/A | M71: N/A | N71: N/A | O71: N/A
K72: Jun | L72: N/A | M72: N/A | N72: N/A | O72: N/A
K73: Jul | L73: N/A | M73: N/A | N73: N/A | O73: N/A
K74: Aug | L74: N/A | M74: N/A | N74: N/A | O74: N/A
K75: Sep | L75: N/A | M75: N/A | N75: N/A | O75: N/A
K76: Oct | L76: N/A | M76: N/A | N76: N/A | O76: N/A
K77: Nov | L77: N/A | M77: N/A | N77: N/A | O77: N/A
K78: Dec | L78: N/A | M78: N/A | N78: N/A | O78: N/A
K79: Annual | L79: =AVERAGE(L67:L78) ->  | M79: =MAX(M67:M78) -> 0 | N79: =AVERAGE(N67:N78) ->  | O79: =MAX(O67:O78) -> 0

Sheet Particulates
A1: =+'Cover Page'!$B$29 -> Annual Performance Report 2025 | E1: =+'Cover Page'!$B$33 -> Newhurst Energy Recovery Facility
A3: Monitoring of Particulate matter emissions | D3: Whole Installation | G3: See Notes in Cell Q3 | J3: =+A3 -> Monitoring of Particulate matter emissions | N3: Per Combustion Line | Q3: Notes:
A5: =+'Cover Page'!C39 -> 2025 | B5: 1/2 Hourly Reference Periods | E5: Daily Reference Periods | Q5: User to add logic to complete Whole installation, Table A5:G18. From the data in Per Combustion Line, Table J6:O79, subject to No. of lines installed
A6: mg/Nm3 | B6: 1/2 hourly PM ELV | C6: Monthly mean of half-hourly averages | D6: Highest half- hourly average | E6: Daily PM ELV | F6: Monthly mean of daily averages | G6: Highest daily average | J6: =+A5 -> 2025 | K6: mg/Nm3 | L6: Monthly mean of half-hourly averages | M6: Highest half- hourly average | N6: Monthly mean of daily averages | O6: Highest daily average
A7: Jan | B7: 30 | C7: =L7 -> 0.1 | D7: =M7 -> 0.1 | E7: 5 | F7: =N7 -> 0 | G7: =O7 -> 0.1 | J7: A1 | K7: Jan | L7: 0.1 | M7: 0.1 | N7: 0 | O7: 0.1
A8: Feb | B8: 30 | C8: =L8 -> 0.1 | D8: =M8 -> 0.1 | E8: 5 | F8: =N8 -> 0 | G8: =O8 -> 0.1 | K8: Feb | L8: 0.1 | M8: 0.1 | N8: 0 | O8: 0.1
A9: Mar | B9: 30 | C9: 0.1 | D9: 0.1 | E9: 5 | F9: 0 | G9: 0.1 | K9: Mar | L9: 0.1 | M9: 0.1 | N9: 0 | O9: 0.1
A10: Apr | B10: 30 | C10: 0.1 | D10: 0.5 | E10: 5 | F10: 0 | G10: 0.1 | K10: Apr | L10: 0.1 | M10: 0.5 | N10: 0 | O10: 0.1 | Q10: Whole Installation table A5:G18:
A11: May | B11: 30 | C11: 0.1 | D11: 0.1 | E11: 5 | F11: 0 | G11: 0.1 | K11: May | L11: 0.1 | M11: 0.1 | N11: 0 | O11: 0.1 | Q11: Mean: for 1/2 hourly and daily periods calculate mean of values across all operational combustion lines for the month
A12: Jun | B12: 30 | C12: 0.1 | D12: 0.2 | E12: 5 | F12: 0 | G12: 0.1 | K12: Jun | L12: 0.1 | M12: 0.2 | N12: 0 | O12: 0.1
A13: Jul | B13: 30 | C13: 0.1 | D13: 1.2 | E13: 5 | F13: 0.1 | G13: 0.4 | K13: Jul | L13: 0.1 | M13: 1.2 | N13: 0.1 | O13: 0.4
A14: Aug | B14: 30 | C14: 0.1 | D14: 0.1 | E14: 5 | F14: 0 | G14: 0.1 | K14: Aug | L14: 0.1 | M14: 0.1 | N14: 0 | O14: 0.1 | Q14: Maximum: for 1/2 hourly and daily periods use the highest value across all operational combustion lines for the month
A15: Sep | B15: 30 | C15: 0.1 | D15: 0.1 | E15: 5 | F15: 0 | G15: 0.1 | K15: Sep | L15: 0.1 | M15: 0.1 | N15: 0 | O15: 0.1
A16: Oct | B16: 30 | C16: 0.1 | D16: 0.2 | E16: 5 | F16: 0 | G16: 0.1 | K16: Oct | L16: 0.1 | M16: 0.2 | N16: 0 | O16: 0.1
A17: Nov | B17: 30 | C17: 0.1 | D17: 0.1 | E17: 5 | F17: 0 | G17: 0.1 | K17: Nov | L17: 0.1 | M17: 0.1 | N17: 0 | O17: 0.1
A18: Dec | B18: 30 | C18: 0.1 | D18: 2.8 | E18: 5 | F18: 0.1 | G18: 0.9 | K18: Dec | L18: 0.1 | M18: 2.8 | N18: 0.1 | O18: 0.9
K19: Annual | L19: =AVERAGE(L7:L18) -> 0.1 | M19: =MAX(M7:M18) -> 2.8 | N19: =AVERAGE(N7:N18) -> 0.01666666667 | O19: =MAX(O7:O18) -> 0.9
J21: =+A5 -> 2025 | K21: mg/Nm3 | L21: Monthly mean of half-hourly averages | M21: Highest half- hourly average | N21: Monthly mean of daily averages | O21: Highest daily average
J22: A2 | K22: Jan | L22: N/A | M22: N/A | N22: N/A | O22: N/A
K23: Feb | L23: N/A | M23: N/A | N23: N/A | O23: N/A
K24: Mar | L24: N/A | M24: N/A | N24: N/A | O24: N/A
K25: Apr | L25: N/A | M25: N/A | N25: N/A | O25: N/A
K26: May | L26: N/A | M26: N/A | N26: N/A | O26: N/A
K27: Jun | L27: N/A | M27: N/A | N27: N/A | O27: N/A
K28: Jul | L28: N/A | M28: N/A | N28: N/A | O28: N/A
K29: Aug | L29: N/A | M29: N/A | N29: N/A | O29: N/A
K30: Sep | L30: N/A | M30: N/A | N30: N/A | O30: N/A
K31: Oct | L31: N/A | M31: N/A | N31: N/A | O31: N/A
K32: Nov | L32: N/A | M32: N/A | N32: N/A | O32: N/A
K33: Dec | L33: N/A | M33: N/A | N33: N/A | O33: N/A
K34: Annual | L34: =AVERAGE(L22:L33) ->  | M34: =MAX(M22:M33) -> 0 | N34: =AVERAGE(N22:N33) ->  | O34: =MAX(O22:O33) -> 0
J36: =+A5 -> 2025 | K36: mg/Nm3 | L36: Monthly mean of half-hourly averages | M36: Highest half- hourly average | N36: Monthly mean of daily averages | O36: Highest daily average
J37: A3 | K37: Jan | L37: N/A | M37: N/A | N37: N/A | O37: N/A
K38: Feb | L38: N/A | M38: N/A | N38: N/A | O38: N/A
K39: Mar | L39: N/A | M39: N/A | N39: N/A | O39: N/A
K40: Apr | L40: N/A | M40: N/A | N40: N/A | O40: N/A
K41: May | L41: N/A | M41: N/A | N41: N/A | O41: N/A
K42: Jun | L42: N/A | M42: N/A | N42: N/A | O42: N/A
K43: Jul | L43: N/A | M43: N/A | N43: N/A | O43: N/A
K44: Aug | L44: N/A | M44: N/A | N44: N/A | O44: N/A
K45: Sep | L45: N/A | M45: N/A | N45: N/A | O45: N/A
K46: Oct | L46: N/A | M46: N/A | N46: N/A | O46: N/A
K47: Nov | L47: N/A | M47: N/A | N47: N/A | O47: N/A
A48: Comments : | K48: Dec | L48: N/A | M48: N/A | N48: N/A | O48: N/A
A49: The two slightly elevated levels, in July and December, were due to damage to a filter bag. The bag was isolated and changed and levels immediately returned to normal (0.1mg/Nm3). | K49: Annual | L49: =AVERAGE(L37:L48) ->  | M49: =MAX(M37:M48) -> 0 | N49: =AVERAGE(N37:N48) ->  | O49: =MAX(O37:O48) -> 0
J51: =+A5 -> 2025 | K51: mg/Nm3 | L51: Monthly mean of half-hourly averages | M51: Highest half- hourly average | N51: Monthly mean of daily averages | O51: Highest daily average
J52: A4 | K52: Jan | L52: N/A | M52: N/A | N52: N/A | O52: N/A
K53: Feb | L53: N/A | M53: N/A | N53: N/A | O53: N/A
K54: Mar | L54: N/A | M54: N/A | N54: N/A | O54: N/A
K55: Apr | L55: N/A | M55: N/A | N55: N/A | O55: N/A
K56: May | L56: N/A | M56: N/A | N56: N/A | O56: N/A
K57: Jun | L57: N/A | M57: N/A | N57: N/A | O57: N/A
K58: Jul | L58: N/A | M58: N/A | N58: N/A | O58: N/A
K59: Aug | L59: N/A | M59: N/A | N59: N/A | O59: N/A
K60: Sep | L60: N/A | M60: N/A | N60: N/A | O60: N/A
K61: Oct | L61: N/A | M61: N/A | N61: N/A | O61: N/A
K62: Nov | L62: N/A | M62: N/A | N62: N/A | O62: N/A
K63: Dec | L63: N/A | M63: N/A | N63: N/A | O63: N/A
K64: Annual | L64: =AVERAGE(L52:L63) ->  | M64: =MAX(M52:M63) -> 0 | N64: =AVERAGE(N52:N63) ->  | O64: =MAX(O52:O63) -> 0
J66: =+A5 -> 2025 | K66: mg/Nm3 | L66: Monthly mean of half-hourly averages | M66: Highest half- hourly average | N66: Monthly mean of daily averages | O66: Highest daily average
J67: A5 | K67: Jan | L67: N/A | M67: N/A | N67: N/A | O67: N/A
K68: Feb | L68: N/A | M68: N/A | N68: N/A | O68: N/A
K69: Mar | L69: N/A | M69: N/A | N69: N/A | O69: N/A
K70: Apr | L70: N/A | M70: N/A | N70: N/A | O70: N/A
K71: May | L71: N/A | M71: N/A | N71: N/A | O71: N/A
K72: Jun | L72: N/A | M72: N/A | N72: N/A | O72: N/A
K73: Jul | L73: N/A | M73: N/A | N73: N/A | O73: N/A
K74: Aug | L74: N/A | M74: N/A | N74: N/A | O74: N/A
K75: Sep | L75: N/A | M75: N/A | N75: N/A | O75: N/A
K76: Oct | L76: N/A | M76: N/A | N76: N/A | O76: N/A
K77: Nov | L77: N/A | M77: N/A | N77: N/A | O77: N/A
K78: Dec | L78: N/A | M78: N/A | N78: N/A | O78: N/A
K79: Annual | L79: =AVERAGE(L67:L78) ->  | M79: =MAX(M67:M78) -> 0 | N79: =AVERAGE(N67:N78) ->  | O79: =MAX(O67:O78) -> 0

Sheet CO 0.5 hourly
A1: =+'Cover Page'!$B$29 -> Annual Performance Report 2025 | E1: =+'Cover Page'!$B$33 -> Newhurst Energy Recovery Facility
A3: Monitoring of Carbon Monoxide (half hourly) | D3: Whole Installation | G3: See Notes in Cell Q3 | J3: =+A3 -> Monitoring of Carbon Monoxide (half hourly) | N3: Per Combustion Line | Q3: Notes:
A5: Please complete this tab for your plant if you have 1/2 hourly CO ELVs; otherwise, leave it blank and complete the CO 95% 10 min tab
Q7: User to add logic to complete Whole installation, Table A5:G18. From the data in Per Combustion Line, Table J6:O79, subject to No. of lines installed
A8: =+'Cover Page'!C39 -> 2025 | B8: 1/2 Hourly Reference Periods | E8: Daily Reference Periods
A9: mg/Nm3 | B9: 1/2 hourly CO ELV | C9: Monthly mean of half-hourly averages | D9: Highest half- hourly average | E9: Daily CO ELV | F9: Monthly mean of daily averages | G9: Highest daily average | J9: =+A8 -> 2025 | K9: mg/Nm3 | L9: Monthly mean of half-hourly averages | M9: Highest half- hourly average | N9: Monthly mean of daily averages | O9: Highest daily average
A10: Jan | B10: 100 | E10: 50 | J10: A1 | K10: Jan
A11: Feb | B11: =+B10 -> 100 | E11: =+E10 -> 50 | K11: Feb
A12: Mar | B12: =+B11 -> 100 | E12: =+E11 -> 50 | K12: Mar | Q12: Whole Installation table A5:G18:
A13: Apr | B13: 100 | E13: 50 | K13: Apr | Q13: Mean: for 1/2 hourly and daily periods calculate mean of values across all operational combustion lines for the month
A14: May | B14: 100 | E14: 50 | K14: May
A15: Jun | B15: 100 | E15: 50 | K15: Jun
A16: Jul | B16: 100 | E16: 50 | K16: Jul | Q16: Maximum: for 1/2 hourly and daily periods use the highest value across all operational combustion lines for the month
A17: Aug | B17: 100 | E17: 50 | K17: Aug
A18: Sep | B18: 100 | E18: 50 | K18: Sep
A19: Oct | B19: 100 | E19: 50 | K19: Oct
A20: Nov | B20: 100 | E20: 50 | K20: Nov
A21: Dec | B21: 100 | E21: 50 | K21: Dec
K22: Annual | L22: =AVERAGE(L10:L21) ->  | M22: =MAX(M10:M21) -> 0 | N22: =AVERAGE(N10:N21) ->  | O22: =MAX(O10:O21) -> 0
J24: =+A8 -> 2025 | K24: mg/Nm3 | L24: Monthly mean of half-hourly averages | M24: Highest half- hourly average | N24: Monthly mean of daily averages | O24: Highest daily average
J25: A2 | K25: Jan
K26: Feb
K27: Mar
K28: Apr
K29: May
K30: Jun
K31: Jul
K32: Aug
K33: Sep
K34: Oct
K35: Nov
K36: Dec
K37: Annual | L37: =AVERAGE(L25:L36) ->  | M37: =MAX(M25:M36) -> 0 | N37: =AVERAGE(N25:N36) ->  | O37: =MAX(O25:O36) -> 0
J39: =+A8 -> 2025 | K39: mg/Nm3 | L39: Monthly mean of half-hourly averages | M39: Highest half- hourly average | N39: Monthly mean of daily averages | O39: Highest daily average
J40: A3 | K40: Jan
K41: Feb
K42: Mar
K43: Apr
K44: May
K45: Jun
K46: Jul
K47: Aug
K48: Sep
K49: Oct
K50: Nov
A51: Comments : | K51: Dec
K52: Annual | L52: =AVERAGE(L40:L51) ->  | M52: =MAX(M40:M51) -> 0 | N52: =AVERAGE(N40:N51) ->  | O52: =MAX(O40:O51) -> 0
J54: =+A8 -> 2025 | K54: mg/Nm3 | L54: Monthly mean of half-hourly averages | M54: Highest half- hourly average | N54: Monthly mean of daily averages | O54: Highest daily average
J55: A4 | K55: Jan
K56: Feb
K57: Mar
K58: Apr
K59: May
K60: Jun
K61: Jul
K62: Aug
K63: Sep
K64: Oct
K65: Nov
K66: Dec
K67: Annual | L67: =AVERAGE(L55:L66) ->  | M67: =MAX(M55:M66) -> 0 | N67: =AVERAGE(N55:N66) ->  | O67: =MAX(O55:O66) -> 0
J69: =+A8 -> 2025 | K69: mg/Nm3 | L69: Monthly mean of half-hourly averages | M69: Highest half- hourly average | N69: Monthly mean of daily averages | O69: Highest daily average
J70: A5 | K70: Jan
K71: Feb
K72: Mar
K73: Apr
K74: May
K75: Jun
K76: Jul
K77: Aug
K78: Sep
K79: Oct
K80: Nov
K81: Dec
K82: Annual | L82: =AVERAGE(L70:L81) ->  | M82: =MAX(M70:M81) -> 0 | N82: =AVERAGE(N70:N81) ->  | O82: =MAX(O70:O81) -> 0

Sheet CO 95% 10 min
A1: =+'Cover Page'!$B$29 -> Annual Performance Report 2025 | E1: =+'Cover Page'!$B$33 -> Newhurst Energy Recovery Facility
A3: Monitoring of Carbon Monoxide (10-minute avg) | E3: Whole Installation | H3: See Notes in Cell S3 | J3: =+A3 -> Monitoring of Carbon Monoxide (10-minute avg) | O3: Per Combustion Line | Q3: Notes: | S3: Notes:
A5: Please complete this tab for your plant if you have 10-minute average CO ELVs; otherwise, leave it blank and complete the CO 0.5 hourly tab
S7: User to add logic to complete Whole installation, Table A5:H18. From the data in Per Combustion Line, Table K6:Q79, subject to No. of lines installed
A8: =+'Cover Page'!C39 -> 2025 | B8: 10-minute Reference Periods | F8: Daily Reference Periods
A9: mg/Nm3 | B9: 95%ile 10-min avg CO ELV | C9: Highest daily 95%ile 10-min average | D9: Monthly mean of 10-min averages | E9: Highest 10-min average | F9: Daily CO ELV | G9: Monthly mean of daily averages | H9: Highest daily average | K9: =+A8 -> 2025 | L9: mg/Nm3 | M9: Highest daily 95%ile 10-min average | N9: Monthly mean of 10-min averages | O9: Highest 10-min average | P9: Monthly mean of daily averages | Q9: Highest daily average
A10: Jan | B10: 150 | C10: =M10 -> 24.8 | D10: =N10 -> 7 | E10: =O10 -> 765.6 | F10: 50 | G10: =P10 -> 6.5 | H10: =Q10 -> 12.8 | K10: A1 | L10: Jan | M10: 24.8 | N10: 7 | O10: 765.6 | P10: 6.5 | Q10: 12.8
A11: Feb | B11: =+B10 -> 150 | C11: =M11 -> 39.6 | D11: =N11 -> 8.3 | E11: =O11 -> 835 | F11: =+F10 -> 50 | G11: =P11 -> 8.3 | H11: =Q11 -> 15.7 | L11: Feb | M11: 39.6 | N11: 8.3 | O11: 835 | P11: 8.3 | Q11: 15.7
A12: Mar | B12: =+B11 -> 150 | C12: 78.6 | D12: 9.6 | E12: 1216.2 | F12: =+F11 -> 50 | G12: 9.4 | H12: 22.1 | L12: Mar | M12: 78.6 | N12: 9.6 | O12: 1216.2 | P12: 9.4 | Q12: 22.1 | S12: Whole Installation table A5:H18:
A13: Apr | B13: 150 | C13: 35.7 | D13: 8.9 | E13: 1135.7 | F13: 50 | G13: 9 | H13: 18.5 | L13: Apr | M13: 35.7 | N13: 8.9 | O13: 1135.7 | P13: 9 | Q13: 18.5 | S13: Mean: for 10-min and daily periods use average of all operational combustion lines.
A14: May | B14: 150 | C14: 41.3 | D14: 8.9 | E14: 1305.3 | F14: 50 | G14: 8.9 | H14: 17.9 | L14: May | M14: 41.3 | N14: 8.9 | O14: 1305.3 | P14: 8.9 | Q14: 17.9
A15: Jun | B15: 150 | C15: 56.1 | D15: 9.2 | E15: 5943.5 | F15: 50 | G15: 7.7 | H15: 12.9 | L15: Jun | M15: 56.1 | N15: 9.2 | O15: 5943.5 | P15: 7.7 | Q15: 12.9
A16: Jul | B16: 150 | C16: 88.2 | D16: 8.9 | E16: 656.9 | F16: 50 | G16: 8.9 | H16: 16.3 | L16: Jul | M16: 88.2 | N16: 8.9 | O16: 656.9 | P16: 8.9 | Q16: 16.3 | S16: Maximum: for 10-min and daily periods use the highest of all operational combustion lines in any month.
A17: Aug | B17: 150 | C17: 77.5 | D17: 7.9 | E17: 586.9 | F17: 50 | G17: 7.9 | H17: 15.8 | L17: Aug | M17: 77.5 | N17: 7.9 | O17: 586.9 | P17: 7.9 | Q17: 15.8
A18: Sep | B18: 150 | C18: 22.4 | D18: 4.5 | E18: 506.2 | F18: 50 | G18: 4.4 | H18: 10.9 | L18: Sep | M18: 22.4 | N18: 4.5 | O18: 506.2 | P18: 4.4 | Q18: 10.9
A19: Oct | B19: 150 | C19: 27.5 | D19: 5.3 | E19: 654.8 | F19: 50 | G19: 5.2 | H19: 9.8 | L19: Oct | M19: 27.5 | N19: 5.3 | O19: 654.8 | P19: 5.2 | Q19: 9.8
A20: Nov | B20: 150 | C20: 18.9 | D20: 5.2 | E20: 600.9 | F20: 50 | G20: 5.1 | H20: 11.1 | L20: Nov | M20: 18.9 | N20: 5.2 | O20: 600.9 | P20: 5.1 | Q20: 11.1
A21: Dec | B21: 150 | C21: 9.3 | D21: 3.8 | E21: 524.2 | F21: 50 | G21: 3.8 | H21: 8.3 | L21: Dec | M21: 9.3 | N21: 3.8 | O21: 524.2 | P21: 3.8 | Q21: 8.3
L22: Annual | M22: =AVERAGE(M10:M21) -> 43.325 | O22: =MAX(O10:O21) -> 5943.5 | P22: =AVERAGE(P10:P21) -> 7.091666667 | Q22: =MAX(Q10:Q21) -> 22.1
K24: =+A8 -> 2025 | L24: mg/Nm3 | M24: Highest daily 95%ile 10-min average | N24: Monthly mean of 10-min averages | O24: Highest 10-min average | P24: Monthly mean of daily averages | Q24: Highest daily average
K25: A2 | L25: Jan | M25: N/A | N25: N/A | O25: N/A | P25: N/A | Q25: N/A
L26: Feb | M26: N/A | N26: N/A | O26: N/A | P26: N/A | Q26: N/A
L27: Mar | M27: N/A | N27: N/A | O27: N/A | P27: N/A | Q27: N/A
L28: Apr | M28: N/A | N28: N/A | O28: N/A | P28: N/A | Q28: N/A
L29: May | M29: N/A | N29: N/A | O29: N/A | P29: N/A | Q29: N/A
L30: Jun | M30: N/A | N30: N/A | O30: N/A | P30: N/A | Q30: N/A
L31: Jul | M31: N/A | N31: N/A | O31: N/A | P31: N/A | Q31: N/A
L32: Aug | M32: N/A | N32: N/A | O32: N/A | P32: N/A | Q32: N/A
L33: Sep | M33: N/A | N33: N/A | O33: N/A | P33: N/A | Q33: N/A
L34: Oct | M34: N/A | N34: N/A | O34: N/A | P34: N/A | Q34: N/A
L35: Nov | M35: N/A | N35: N/A | O35: N/A | P35: N/A | Q35: N/A
L36: Dec | M36: N/A | N36: N/A | O36: N/A | P36: N/A | Q36: N/A
L37: Annual | M37: =AVERAGE(M25:M36) ->  | O37: =MAX(O25:O36) -> 0 | P37: =AVERAGE(P25:P36) ->  | Q37: =MAX(Q25:Q36) -> 0
K39: =+A8 -> 2025 | L39: mg/Nm3 | M39: Highest daily 95%ile 10-min average | N39: Monthly mean of 10-min averages | O39: Highest 10-min average | P39: Monthly mean of daily averages | Q39: Highest daily average
K40: A3 | L40: Jan | M40: N/A | N40: N/A | O40: N/A | P40: N/A | Q40: N/A
L41: Feb | M41: N/A | N41: N/A | O41: N/A | P41: N/A | Q41: N/A
L42: Mar | M42: N/A | N42: N/A | O42: N/A | P42: N/A | Q42: N/A
L43: Apr | M43: N/A | N43: N/A | O43: N/A | P43: N/A | Q43: N/A
L44: May | M44: N/A | N44: N/A | O44: N/A | P44: N/A | Q44: N/A
L45: Jun | M45: N/A | N45: N/A | O45: N/A | P45: N/A | Q45: N/A
L46: Jul | M46: N/A | N46: N/A | O46: N/A | P46: N/A | Q46: N/A
L47: Aug | M47: N/A | N47: N/A | O47: N/A | P47: N/A | Q47: N/A
L48: Sep | M48: N/A | N48: N/A | O48: N/A | P48: N/A | Q48: N/A
L49: Oct | M49: N/A | N49: N/A | O49: N/A | P49: N/A | Q49: N/A
L50: Nov | M50: N/A | N50: N/A | O50: N/A | P50: N/A | Q50: N/A
A51: Comments : | L51: Dec | M51: N/A | N51: N/A | O51: N/A | P51: N/A | Q51: N/A
A52: Environment Agency explanatory note: The 10-minute average ELV is based on the “95th percentile”. In this case this means that 95% of the 10 minute averages in the relevant 24-hour period (i.e. 137) must be below 150 mg/Nm3, and 5% (i.e. 7) are allowed to be any value above 150 mg/Nm3. Whilst we expect operators to minimise CO emissions at all times, it is perfectly acceptable for the value of the maximum 10-minute average to be above 150 mg/Nm3, provided the 95th percentile ELV has been met for that period. | L52: Annual | M52: =AVERAGE(M40:M51) ->  | O52: =MAX(O40:O51) -> 0 | P52: =AVERAGE(P40:P51) ->  | Q52: =MAX(Q40:Q51) -> 0
K54: =+A8 -> 2025 | L54: mg/Nm3 | M54: Highest daily 95%ile 10-min average | N54: Monthly mean of 10-min averages | O54: Highest 10-min average | P54: Monthly mean of daily averages | Q54: Highest daily average
K55: A4 | L55: Jan | M55: N/A | N55: N/A | O55: N/A | P55: N/A | Q55: N/A
A57: GRAPH PLOTTED WITHOUT 10min max so other data is visible | L57: Feb | M57: N/A | N57: N/A | O57: N/A | P57: N/A | Q57: N/A
L58: Mar | M58: N/A | N58: N/A | O58: N/A | P58: N/A | Q58: N/A
L59: Apr | M59: N/A | N59: N/A | O59: N/A | P59: N/A | Q59: N/A
L60: May | M60: N/A | N60: N/A | O60: N/A | P60: N/A | Q60: N/A
L61: Jun | M61: N/A | N61: N/A | O61: N/A | P61: N/A | Q61: N/A
L62: Jul | M62: N/A | N62: N/A | O62: N/A | P62: N/A | Q62: N/A
L63: Aug | M63: N/A | N63: N/A | O63: N/A | P63: N/A | Q63: N/A
L64: Sep | M64: N/A | N64: N/A | O64: N/A | P64: N/A | Q64: N/A
L65: Oct | M65: N/A | N65: N/A | O65: N/A | P65: N/A | Q65: N/A
L66: Nov | M66: N/A | N66: N/A | O66: N/A | P66: N/A | Q66: N/A
L67: Dec | M67: N/A | N67: N/A | O67: N/A | P67: N/A | Q67: N/A
L68: Annual | M68: =AVERAGE(M55:M67) ->  | O68: =MAX(O55:O67) -> 0 | P68: =AVERAGE(P55:P67) ->  | Q68: =MAX(Q55:Q67) -> 0
K70: =+A8 -> 2025 | L70: mg/Nm3 | M70: 95%ile 10-min avg maximum | N70: Monthly CO 10-min avg mean | O70: 10-min avg maximum | P70: Monthly daily mean | Q70: Monthly daily maximum
K71: A5 | L71: Jan | M71: N/A | N71: N/A | O71: N/A | P71: N/A | Q71: N/A
L72: Feb | M72: N/A | N72: N/A | O72: N/A | P72: N/A | Q72: N/A
L73: Mar | M73: N/A | N73: N/A | O73: N/A | P73: N/A | Q73: N/A
L74: Apr | M74: N/A | N74: N/A | O74: N/A | P74: N/A | Q74: N/A
L75: May | M75: N/A | N75: N/A | O75: N/A | P75: N/A | Q75: N/A
L76: Jun | M76: N/A | N76: N/A | O76: N/A | P76: N/A | Q76: N/A
L77: Jul | M77: N/A | N77: N/A | O77: N/A | P77: N/A | Q77: N/A
L78: Aug | M78: N/A | N78: N/A | O78: N/A | P78: N/A | Q78: N/A
L79: Sep | M79: N/A | N79: N/A | O79: N/A | P79: N/A | Q79: N/A
L80: Oct | M80: N/A | N80: N/A | O80: N/A | P80: N/A | Q80: N/A
L81: Nov | M81: N/A | N81: N/A | O81: N/A | P81: N/A | Q81: N/A
L82: Dec | M82: N/A | N82: N/A | O82: N/A | P82: N/A | Q82: N/A
L83: Annual | M83: =AVERAGE(M71:M82) ->  | O83: =MAX(O71:O82) -> 0 | P83: =AVERAGE(P71:P82) ->  | Q83: =MAX(Q71:Q82) -> 0

Sheet NH3
A1: =+'Cover Page'!$B$29 -> Annual Performance Report 2025 | E1: =+'Cover Page'!$B$33 -> Newhurst Energy Recovery Facility
A3: Monitoring of Ammnonia emissions | D3: Whole Installation | G3: See Notes in Cell Q3 | J3: =+A3 -> Monitoring of Ammnonia emissions | N3: Per Combustion Line | Q3: Notes:
Q4: User to add logic to complete Whole installation, Table A5:G18. From the data in Per Combustion Line, Table J6:O79, subject to No. of lines installed
A5: =+'Cover Page'!C39 -> 2025 | B5: 1/2 Hourly Reference Periods | E5: Daily Reference Periods
A6: mg/Nm3 | B6: 1/2 hourly NH3 ELV | C6: Monthly mean of half-hourly averages | D6: Highest half- hourly average | E6: Daily NH3 ELV | F6: Monthly mean of daily averages | G6: Highest daily average | J6: =+A5 -> 2025 | K6: mg/Nm3 | L6: Monthly mean of half-hourly averages | M6: Highest half- hourly average | N6: Monthly mean of daily averages | O6: Highest daily average
A7: Jan | B7: None | C7: =L7 -> 0 | D7: =M7 -> 0.6 | E7: 15 | F7: =N7 -> 0 | G7: =O7 -> 0.1 | J7: A1 | K7: Jan | L7: 0 | M7: 0.6 | N7: 0 | O7: 0.1
A8: Feb | B8: =+B7 -> None | C8: =L8 -> 0 | D8: =M8 -> 0.5 | E8: 15 | F8: =N8 -> 0 | G8: =O8 -> 0.1 | K8: Feb | L8: 0 | M8: 0.5 | N8: 0 | O8: 0.1
A9: Mar | B9: =+B8 -> None | C9: 0 | D9: 0.3 | E9: 15 | F9: 0 | G9: 0.1 | K9: Mar | L9: 0 | M9: 0.3 | N9: 0 | O9: 0.1 | Q9: Whole Installation table A5:G18:
A10: Apr | B10: None | C10: 0.1 | D10: 7.4 | E10: 15 | F10: 0 | G10: 0.2 | K10: Apr | L10: 0.1 | M10: 7.4 | N10: 0 | O10: 0.2 | Q10: Mean: for 1/2 hourly and daily periods calculate mean of values across all operational combustion lines for the month
A11: May | B11: None | C11: 0 | D11: 0.5 | E11: 15 | F11: 0 | G11: 0.1 | K11: May | L11: 0 | M11: 0.5 | N11: 0 | O11: 0.1
A12: Jun | B12: None | C12: 0 | D12: 0.8 | E12: 15 | F12: 0 | G12: 0.1 | K12: Jun | L12: 0 | M12: 0.8 | N12: 0 | O12: 0.1
A13: Jul | B13: None | C13: 0 | D13: 0.4 | E13: 15 | F13: 0 | G13: 0.1 | K13: Jul | L13: 0 | M13: 0.4 | N13: 0 | O13: 0.1 | Q13: Maximum: for 1/2 hourly and daily periods use the highest value across all operational combustion lines for the month
A14: Aug | B14: None | C14: 0 | D14: 0.2 | E14: 15 | F14: 0 | G14: 0.1 | K14: Aug | L14: 0 | M14: 0.2 | N14: 0 | O14: 0.1
A15: Sep | B15: None | C15: 0 | D15: 0.3 | E15: 15 | F15: 0 | G15: 0.1 | K15: Sep | L15: 0 | M15: 0.3 | N15: 0 | O15: 0.1
A16: Oct | B16: None | C16: 0 | D16: 0.4 | E16: 15 | F16: 0 | G16: 0.1 | K16: Oct | L16: 0 | M16: 0.4 | N16: 0 | O16: 0.1
A17: Nov | B17: None | C17: 0 | D17: 0.4 | E17: 15 | F17: 0 | G17: 0.1 | K17: Nov | L17: 0 | M17: 0.4 | N17: 0 | O17: 0.1
A18: Dec | B18: None | C18: 0 | D18: 0.4 | E18: 15 | F18: 0 | G18: 0.1 | K18: Dec | L18: 0 | M18: 0.4 | N18: 0 | O18: 0.1
K19: Annual | L19: =AVERAGE(L7:L18) -> 0.008333333333 | M19: =MAX(M7:M18) -> 7.4 | N19: =AVERAGE(N7:N18) -> 0 | O19: =MAX(O7:O18) -> 0.2
J21: =+A5 -> 2025 | K21: mg/Nm3 | L21: Monthly mean of half-hourly averages | M21: Highest half- hourly average | N21: Monthly mean of daily averages | O21: Highest daily average
J22: A2 | K22: Jan | L22: N/A | M22: N/A | N22: N/A | O22: N/A
K23: Feb | L23: N/A | M23: N/A | N23: N/A | O23: N/A
K24: Mar | L24: N/A | M24: N/A | N24: N/A | O24: N/A
K25: Apr | L25: N/A | M25: N/A | N25: N/A | O25: N/A
K26: May | L26: N/A | M26: N/A | N26: N/A | O26: N/A
K27: Jun | L27: N/A | M27: N/A | N27: N/A | O27: N/A
K28: Jul | L28: N/A | M28: N/A | N28: N/A | O28: N/A
K29: Aug | L29: N/A | M29: N/A | N29: N/A | O29: N/A
K30: Sep | L30: N/A | M30: N/A | N30: N/A | O30: N/A
K31: Oct | L31: N/A | M31: N/A | N31: N/A | O31: N/A
K32: Nov | L32: N/A | M32: N/A | N32: N/A | O32: N/A
K33: Dec | L33: N/A | M33: N/A | N33: N/A | O33: N/A
K34: Annual | L34: =AVERAGE(L22:L33) ->  | M34: =MAX(M22:M33) -> 0 | N34: =AVERAGE(N22:N33) ->  | O34: =MAX(O22:O33) -> 0
J36: =+A5 -> 2025 | K36: mg/Nm3 | L36: Monthly mean of half-hourly averages | M36: Highest half- hourly average | N36: Monthly mean of daily averages | O36: Highest daily average
J37: A3 | K37: Jan | L37: N/A | M37: N/A | N37: N/A | O37: N/A
K38: Feb | L38: N/A | M38: N/A | N38: N/A | O38: N/A
K39: Mar | L39: N/A | M39: N/A | N39: N/A | O39: N/A
K40: Apr | L40: N/A | M40: N/A | N40: N/A | O40: N/A
K41: May | L41: N/A | M41: N/A | N41: N/A | O41: N/A
K42: Jun | L42: N/A | M42: N/A | N42: N/A | O42: N/A
K43: Jul | L43: N/A | M43: N/A | N43: N/A | O43: N/A
K44: Aug | L44: N/A | M44: N/A | N44: N/A | O44: N/A
K45: Sep | L45: N/A | M45: N/A | N45: N/A | O45: N/A
K46: Oct | L46: N/A | M46: N/A | N46: N/A | O46: N/A
K47: Nov | L47: N/A | M47: N/A | N47: N/A | O47: N/A
A48: Comments : | K48: Dec | L48: N/A | M48: N/A | N48: N/A | O48: N/A
A49: An indicated ELV value of zero in the table above means that no ammonia limit is/was set in the permit. | K49: Annual | L49: =AVERAGE(L37:L48) ->  | M49: =MAX(M37:M48) -> 0 | N49: =AVERAGE(N37:N48) ->  | O49: =MAX(O37:O48) -> 0
J51: =+A5 -> 2025 | K51: mg/Nm3 | L51: Monthly mean of half-hourly averages | M51: Highest half- hourly average | N51: Monthly mean of daily averages | O51: Highest daily average
J52: A4 | K52: Jan | L52: N/A | M52: N/A | N52: N/A | O52: N/A
K53: Feb | L53: N/A | M53: N/A | N53: N/A | O53: N/A
K54: Mar | L54: N/A | M54: N/A | N54: N/A | O54: N/A
K55: Apr | L55: N/A | M55: N/A | N55: N/A | O55: N/A
K56: May | L56: N/A | M56: N/A | N56: N/A | O56: N/A
K57: Jun | L57: N/A | M57: N/A | N57: N/A | O57: N/A
K58: Jul | L58: N/A | M58: N/A | N58: N/A | O58: N/A
K59: Aug | L59: N/A | M59: N/A | N59: N/A | O59: N/A
K60: Sep | L60: N/A | M60: N/A | N60: N/A | O60: N/A
K61: Oct | L61: N/A | M61: N/A | N61: N/A | O61: N/A
K62: Nov | L62: N/A | M62: N/A | N62: N/A | O62: N/A
K63: Dec | L63: N/A | M63: N/A | N63: N/A | O63: N/A
K64: Annual | L64: =AVERAGE(L52:L63) ->  | M64: =MAX(M52:M63) -> 0 | N64: =AVERAGE(N52:N63) ->  | O64: =MAX(O52:O63) -> 0
J66: =+A5 -> 2025 | K66: mg/Nm3 | L66: Monthly mean of half-hourly averages | M66: Highest half- hourly average | N66: Monthly mean of daily averages | O66: Highest daily average
J67: A5 | K67: Jan | L67: N/A | M67: N/A | N67: N/A | O67: N/A
K68: Feb | L68: N/A | M68: N/A | N68: N/A | O68: N/A
K69: Mar | L69: N/A | M69: N/A | N69: N/A | O69: N/A
K70: Apr | L70: N/A | M70: N/A | N70: N/A | O70: N/A
K71: May | L71: N/A | M71: N/A | N71: N/A | O71: N/A
K72: Jun | L72: N/A | M72: N/A | N72: N/A | O72: N/A
K73: Jul | L73: N/A | M73: N/A | N73: N/A | O73: N/A
K74: Aug | L74: N/A | M74: N/A | N74: N/A | O74: N/A
K75: Sep | L75: N/A | M75: N/A | N75: N/A | O75: N/A
K76: Oct | L76: N/A | M76: N/A | N76: N/A | O76: N/A
K77: Nov | L77: N/A | M77: N/A | N77: N/A | O77: N/A
K78: Dec | L78: N/A | M78: N/A | N78: N/A | O78: N/A
K79: Annual | L79: =AVERAGE(L67:L78) ->  | M79: =MAX(M67:M78) -> 0 | N79: =AVERAGE(N67:N78) ->  | O79: =MAX(O67:O78) -> 0

Sheet Template changes log
A1: Log of changes to template (Environment Agency use only)
A3: Date | B3: Description of change | C3: New version number and date
A4: 2024-01-16 | B4: Air (periodic) tab: corrected default O2 reference from 6 to 11% | C4: Version 23.5a (for incinerators) - 16/01/2024
A5: 2024-09-23 | B5: Air (periodic) tab: corrected symbol for Thallium to Tl
A6: 2024-09-23 | B6: Air (periodic) tab: removed last year's references to different emission limit values applying from 03/12/23 and updated all relevant ELVs
A7: 2024-09-23 | B7: Tabs for continuously monitored pollutants (HCl, SO2 etc.): changed terminology in table headings to improve clarity
A8: 2024-09-23 | B8: Tabs for continuously monitored pollutants (HCl, SO2 etc.): removed last year's references to different emission limit values applying from 03/12/23 and updated all relevant ELVs
A9: 2024-09-23 | B9: Perf 1 tab: updated formula for water usage to report m3 rather than litres and corrected error with formula copying operator name
A10: 2024-09-23 | B10: Operational Summary tab: table added on start-ups and shut-downs
A11: 2024-09-23 | B11: Operational Summary tab: table added on dioxins and mercury protocols
A12: 2024-09-23 | B12: Operational Summary tab: table added on AST, QAL 2 and calibration functions
A13: 2024-09-23 | B13: CO2 N2O tab: various changes made to notes to reflect the fact that most plants should now have calibrated CEMS and flow meters + some have C14 samplers and more up to date industry data | C13: Version 24a (for incinerators) - 23/09/24
A14: 2024-11-08 | B14: CO2 N2O tab: Changed the N2O CO2 equivalence factor from 298 to 265 in line with recently updated government greenhouse gas figures: https://www.gov.uk/government/publications/greenhouse-gas-reporting-conversion-factors-2024
A15: 2024-11-08 | B15: CO2 N2O tab: Added an additional requirement for municipal EfW plants to state the yearly average biogenic percentage of the waste by mass, and reference to a document which sets out a methodology for calculating NCV of waste from the results of C14 sampling.
A16: 2024-11-08 | B16: Permit Compliance tab: Two additional columns added + explanatory notes to the table entitled "Summary of non-compliances under the permit" to allow CCS scores to be stated where relevant.
A17: 2024-11-08 | B17: Residue Quality tab: Note added explaining application of TOC and LOI limits and asking operators to report both metrics where measured. | C17: Version 24.1a (for incinerators) - 08/11/24
A18: 2024-11-27 | B18: Operational Summary tab: table added on start-ups and shut-downs | C18: Version 24.2a (for incinerators) - 27/11/24
A19: 2025-11-27 | B19: Cover Page: Print as PDF and Print Report and pdf buttons deleted and blank columns removed; contents page deleted | C19: Version 25.1a (for incinerators) - 27/11/25
A20: 2025-11-27 | B20: Residue Quality tab renamed to "Residues", and Summary of residue handling table moved from Operational Summary tab to Residues tab.
A21: 2025-11-27 | B21: Various changes made to the Operational Data tab including • Reformatting of the rows under the Operational data heading (Rows 3-8) to make it clearer what information is required. • Amendment of the rows under the Energy Usage / Export heading (Rows 26-32) to calculate an “indicative parasitic load” (now excluding energy imported) • Amendment of the unit for gas usage from cubic feet to cubic metres (Row 50) • Some amendments to the first 2 notes and other minor edits • Deleted "Overall Availability, mean avg. of all lines, hrs" row
A22: 2025-11-27 | B22: Operational Summary tab: Note added requiring all emergency shut-downs be listed, irrespective of whether or not they were reportable.
A23: 2025-11-27 | B23: CO2 N2O tab: Note added to ask operators to ensure that relevant data reported here matches that which will be submitted under the Pollution Inventory
